{"text_format":"3","workbook":"xlsx","n_sheets":6,"sheets":["CSE Stipend Pmt Sep - 18","Sheet1","Jan 18","Sheet4","Argos data verification","Stipend Pmt Nov-19 "],"not_rendered":{"images":3,"external_links":1,"defined_names":3},"read":"whole","date_system":"1900"}

{"sheet":"CSE Stipend Pmt Sep - 18","index":0,"n_rows":95,"n_cols":15,"rows_kept":95,"hidden":true}
[]
[{"$nulls":4},"Stipend Payment for SEP/ 2018"]
[]
[]
[]
["Ref. HBKU/CSE/Stipend/XXX"]
["To:   Accounts Payable Manager / QF-Finance"]
["CC:   Executive Director / QF-Finance"]
["CC:  Chief Financial Officer / HBKU-Finance"]
["Date: 01/08/2018"]
[]
["Please arrange for the payment of QR 577,000/- stipend to the following students receiving scholarships via bank transfer to their respective below bank accounts. The HBKU account to be charged is HU.BA.856.725011 "]
[]
["#","QID Student Name ","Banner Student Name","Banner ID","Qatar ID","Admittance Year","Citizenship","College","Program","Amount","IBAN ","Bank Name","Swift Code","Status Check","Further Notes"]
[1,"Ahmad Najjar","Ahmad Najjar",210003922,28382600193,"2015-16","United Kingdom","CSE","Biomedical &Biological Science",9000,"QA39 QISB 0115 4313 0060 2001 3037 1 ","Qatar Islamic Bank (QIB) ",0,"Active",0]
[2,"Ahmed Sodiq","Ahmed Sodiq",210003956,28556600717,"2015-16","Nigeria","CSE",{"$error":"#N/A"},9000,"QA02 QNBA 0000 0000 0035 3751 7204 3","QNB",0,"Active",0]
[3,"Ahmer Balouch","Ahmer Ali Bozdar Baloch",210003976,28858604890,"2015-16","Pakistan","CSE","Sustainable Energy",9000,"QA94 QNBA 0000 0000 0035 3879 7904 3","QNB",0,"Active",0]
[4,"Faisal Mumtaz","Faisal Ahmed Mumtaz",210003977,29058603829,"2015-16","Pakistan","CSE","Sustainable Energy",9000,"QA14 QNBA 0000 0000 0035 3757 0804 3","QNB - Qatar Foundation","QNBAQAQA","Active",0]
[5,"Hajar Farzaneh","Hajar Ali Hussain Farzaneh",210003974,28736400101,"2015-16","Iran (Islamic Republic Of)","CSE","Sustainable Environment",9000,"QA34 QNBA 0000 0000 0027 3352 6904 3","QNB",0,"Active",0]
[6,"Ibrahim Ari","Ibrahim Ari",210003961,28379201466,"2015-16","Turkey","CSE","Sustainable Energy",9000,"QA84 QNBA 0000 0000 0035 3736 2904 3","QNB - Qatar Foundation","QNBAQAQA","Active",0]
[7,"Irfan Batur","Irfan Batur",210003962,28879200783,"2015-16","Turkey","CSE","Sustainable Energy",9000,"QA40 QNBA 0000 0000 0035 3751 8804 3","QNB - Qatar Foundation","QNBAQAQA","Active",0]
[8,"Mohamed Alhaj","Mohamed Atta Elmanan Bakhit Alhaj",210003978,29073601675,"2015-16","Sudan","CSE","Sustainable Energy",9000,"QA78 QISB 0000 0000 0150 4583 6001 0 ","Qatar Islamic Bank QIB",0,"Active",0]
[9,"Nurettin Sezer","Nurettin Sezer",210003979,28779200915,"2015-16","Turkey","CSE","Sustainable Energy",9000,"QA21 QNBA 0000 0000 0035 3736 2804 3","QNB - Qatar Foundation","QNBAQAQA","Active",0]
[10,"Raghavendran Sivasubramanian","Raghavendran Sivasubramanian",210003985,29135605490,"2015-16","India","CSE","Sustainable Environment",9000,"QA07 QNBA 0000 0000 0035 2472 0800 1","QNB - Qatar Foundation",null,"Active",0]
[12,"Shahzada Pamir Aly","Shahzada Pamir Aly",210003963,28858604676,"2015-16","Pakistan","CSE","Sustainable Energy",9000,"QA72 QNBA 0000 0000 0035 3757 1204 3","QNB","QNBAQAQA","Active",0]
[13,"Shoukat Khan","Shoukat Alim Khan",210003980,28758604809,"2015-16","Pakistan","CSE","Sustainable Energy",9000,"QA43 QNBA 0000 0000 0035 3757 1004 3","QNB - Qatar Foundation","QNBAQAQA","Active",0]
[14,"Tejvir Singh","Tejvir Singh",210003987,28935629006,"2015-16","India","CSE","Sustainable Energy",9000,"QA13 QNBA 0000 0000 0230 3767 6804 3","QNB - Qatar Foundation",0,"Active",0]
[15,"Waqas Nawaz","Waqas Nawaz",210003960,28558603712,"2015-16","Pakistan","CSE","Sustainable Energy",9000,"QA72 QNBA 0000 0000 0035 2471 6900 1","QNB - Qatar Foundation","QNBAQAQAXXX","Active",0]
[16,"Abdulghani  Khilan","Abdulghani Khilan",210004371,28476001451,"2016-17","Syrian Arab Republic","CSE","Biomedical &Biological Science",9000,"QA59 QNBA 0000 0000 0035 4116 6804 3","QNB - Qatar Foundation","QNBAQAQA","Active",0]
[17,"Abdurrahman Mohamed Elbasir","Abdurrahman  Elbasir",210005228,28143400039,"2016-17","Liberia","CSE","Computer Science & Engineering",9000,"QA02 QNBA 0000 0000 0035 4094 1304 3","QNB",null,"Active",0]
[18,"Arwa Aldaalis","Arwa A.H. Aldaalis",210004571,28540000086,"2016-17","Palestinian Territory, Occupie","CSE","Biomedical &Biological Science",9000,"QA68 QISB 0109 4889 0110 1001 7190 7","Qatar Islamic Bank",null,"Active",0]
[19,"Athar Kamal","Athar Kamal",210004773,28958604525,"2016-17","Pakistan","CSE","Sustainable Energy",9000,"QA56 QNBA 0000 0000 0035 4114 3704 3","QNB",0,"Active",0]
[20,"Atiq ur Rehman","Atiq Ur Rehman",210004909,28958604524,"2016-17","Pakistan","CSE","Computer Science & Engineering",9000,"QA37 QNBA 0000 0000 0035 4114 2904 3","QNB",0,"Active",0]
[21,"AEIT SAMIR","Ayat Samir Mah'd Hammad",210005086,29040000311,"2016-17","Jordan","CSE","Biomedical &Biological Science",9000,"QA76 MAFR 0000 0000 0006 5113 0800 1","Masraf Al Rayan",null,"Active",0]
[22,"Bilikis Oluwatoyin Banire","Bilikis Oluwatoyin Banire",210004884,28256600748,"2016-17","Nigeria","CSE","Computer Science & Engineering",9000,"QA38 QNBA 0000 0000 0035 4123 7904 3","QNB",0,"Active",0]
[23,"Bushra Memon","Bushra Memon",210004495,29435601629,"2016-17","India","CSE",{"$error":"#N/A"},7500,"QA36 QISB 0121 2645 0020 2001 6259 1","Qatar Islamic Bank (QIB)",0,"Graduated","Accepted to PhD"]
[24,"Drishya George","Drishya Maria George",210004492,28935629152,"2016-17","India","CSE","Biomedical &Biological Science",9000,"QA14 CBQA 0000 0000 4610 5195 8710 1","Commercial Bank of Qatar",null,"Active",0]
[25,"Furqan Tahir","Furqan  Tahir",210004792,28958604620,"2016-17","Pakistan","CSE","Sustainable Energy",9000,"QA15 QNBA 0000 0000 0035 4132 2704 3","QNB",0,"Active",0]
[26,"Ghadeer Abuoda","Ghadeer Said AbuOda",210005378,28399900515,"2016-17","Palestinian Territory, Occupie","CSE","Computer Science & Engineering",9000,"QA11 QNBA 0000 0000 0035 4157 3204 3","QNB",null,"Active",0]
[27,"Heba Yasin","Heba Rashid Yasin",210005072,28955400010,"2016-17","New Zealand","CSE",{"$error":"#N/A"},7500,"QA30 QISB 0000 0000 0112 0565 8001 8","Qatar Islamic Bank",null,"Graduated","Previously applied for extension of scholarship. This case was approved to the end of summer due to changes in advisor and lab access limitations."]
[28,"Hend Kamal Gedawy","Hend Kamal Gedawy",210005166,28681800007,"2016-17","Egypt","CSE","Computer Science & Engineering",9000,"QA57 QISB 0000 0000 0151 3988 1001 7","Qatar Islamic Bank",0,"Active",0]
[29,"Karim Shalaby","Karim Esmat Shalaby",210004449,29081800115,"2016-17","Egypt","CSE","Biomedical &Biological Science",7500,"QA03 QIIB 0000 0000 2225 0442 2000 1","Qatar International Islamic Bank",null,"Graduated","New Admission letter to PhD offered. Stipend to continue throughout summer unless offer not accepted."]
[30,"Kholoud Khalil Aldous","Kholoud Khalil Aldous",210004903,28899900457,"2016-17","Palestinian Territory, Occupie","CSE","Computer Science & Engineering",9000,"QA41 QNBA 0000 0000 0225 4015 4500 1","QNB",0,"Active",0]
[31,"Mehzabeen Mannan","Mehzabeen  Mannan",210004673,28905006966,"2016-17","Bangladesh","CSE","Sustainable Environment",7500,"QA57 QNBA 0000 0000 0035 4123 8704 3","QNB",0,"Graduated","New Admission letter to PhD offered. Stipend to continue throughout summer unless offer not accepted."]
[32,"Nagla Mohamed","Nagla Kamal Mohamed",210004975,27484000461,"2016-17","United States","CSE","Sustainable Environment",9000,"QA44 QISB 0000 0000 0112 1507 2001 2","QIB",null,"Active",0]
[33,"Rand ElShorafa","Rand Essam ElShorafa",210004759,28899900169,"2016-17","Palestinian Territory, Occupie","CSE","Sustainable Environment",9000,"QA40 QNBA 0000 0000 0224 4131 5304 3","QNB",null,"Active",0]
[34,"Safae Sali","Safae Sali",210004971,29350400478,"2016-17","Morocco","CSE","Sustainable Environment",7500,"QA17 QNBA 0000 0000 0035 4095 9804 3","QNB",0,"Graduated","New Admission letter to PhD offered. Stipend to continue throughout summer unless offer not accepted. May be dependent on GRE submission."]
[35,"Sara Ahmad","Sara  Ahmad",210004790,29140000549,"2016-17","Jordan","CSE","Sustainable Energy",9000,"QA19 QIIB 0000 0000 2222 4900 4520 1","Qatar International Islamic Bank",null,"Active",0]
[36,"Tahir Abdul Rehman","TAHIR  ABDULREHMAN",210005791,28235654617,"2016-17","India","CSE","Biomedical &Biological Science",9000,"QA43 MAFR 0000 0000 0006 5343 7500 1","Masraf Al Rayan",null,"Active",0]
[37,"Tsz Ngai Lin","Tsz Ngai Lin",210005563,29115600557,"2016-17","China","CSE","Computer Science & Engineering",9000,"QA06 QNBA 0000 0000 0035 4225 2504 3","QNB",0,"Active",0]
[38,"Yasmeen Salameh","Yasmeen Mahmoud Salameh",210004429,28540000288,"2016-17","Jordan","CSE","Genomics & Precision Medicine",7500,"QA60 QIIB 0000 0000 6646 5657 1720 1","Qatar International Islamic Bank",null,"Graduated","New Admission letter to PhD offered. Stipend to continue throughout summer unless offer not accepted."]
[39,"Amal Abdelmageed","Amal Elfatih Abdelmageed",210008027,29073601478,"2017-18","Sudan","CSE","Genomics & Precision Medicine",7000,"QA67QNBA000000000060617928043","QNB",null,"Active",0]
[40,"Areej Mesleh","Areej  Mesleh",210006692,29540000179,"2017-18","Jordan","CSE","Genomics &Precision Medicine",5000,"QA25 QNBA 0000 0000 0224 3201 3904 3","QNB","QNBAQAQAXXX","Active",0]
[41,"Asma Elashi","Asma Elashi",210006493,29573600364,"2017-18","Palestinian Territory, Occupie","CSE","Biological &Biomedical Science",5000,"QA07 ABQQ 0000 0000 0007 3406 9550 1","Ahli Bank","ABQQQAQA","Active",0]
[42,"Edin Salkovic","Edin  Salkovic",210005898,28349900003,"2017-18","Yugoslavia","CSE","Computer Science & Engineering",7000,"QA49 QNBA 0000 0000 0035 4407 7404 3","QNB","QNBAQAQA","Active",0]
[43,"Eman  Wehedy Elsayed Abdelsalam","Eman Wehedy Elsayed Abdelsalam",210007495,28781809491,"2017-18","Egypt","CSE","Genomics & Precision Medicine",7000,"QA06 QIIB 0000 0000 2007 1139 3020 1","Qatar international Islamic bank","QIIBQAQA","Active",0]
[44,"Eman Aldous","Eman Khaleel Rashied Aldous",210003921,28499900173,"2017-18","Palestinian Territory, Occupie","CSE","Biomedical &Biological Science",7000,"QA10 QISB 0000 0000 0110 9548 5001 3","Qatar Islamic Bank (QIB)","QISBQAQA","Active",0]
[45,"Faran Farooq","Faran Farooq",210008040,29458601672,"2017-18","Pakistan","CSE",{"$error":"#N/A"},5000,"QA41 QNBA 0000 0000 0035 2820 4804 3","QNB","QNBAQAQAXXX","Active",0]
[46,"Ghada Mohammed Yousif","Ghada Yousif Mohammed Yousif",210008063,28673602007,"2017-18","Sudan","CSE","Genomics & Precision Medicine",7000,"QA54 QNBA 0000 0000 0035 4422 2604 3","QNB","QNBAQAQA","Active",0]
[47,"Haile Tecle Woldesellasse","Haile Tecle Woldesellasse",210006020,29008000470,"2017-18","Eritrea","CSE",{"$error":"#N/A"},7000,"QA95 QNBA 0000 0000 0035 4418 9104 3","QNB","QNBAQAQAXXX","Active",0]
[48,"Iman Hawari","Iman  Hawari",210007507,28776002527,"2017-18","Syrian Arab Republic","CSE","Genomics & Precision Medicine",7000,"QA28 QNBA 0000 0000 0035 4444 9204 3","QNB","QNBAQAQAXXX","Active",0]
[49,"Ismail Walid Khalil Almanassra","Ismail Walid Khalil Almanassra",210007734,0,"2017-18","Jordan","CSE","Sustainable Environment",7000,"QA72 QNBA 0000 0000 0035 4434 1804 3","QNB","QNBAQAQAXXX","Active",0]
[50,"Isra Mohamed Ali","Isra Mohamed Ali",210008037,0,"2017-18","Libyan Arab Jamahiriya","CSE","Cybersecurity",5000,"QA21 QNBA 0000 0000 0060 4446 3604 3","QNB","QNBAQAQAXXX","Active",0]
[51,"Israa Elbashir","Israa Elbashir",210007817,29473600123,"2017-18","Sudan","CSE","Genomics &Precision Medicine",5000,"QA36 MAFR 0000 0000 0006 5143 3900 1","Masraf Al Rayan","MAFRQAQAXXX","Active",0]
[52,"Kholoud Bastaki","Kholoud Bastaki",210008183,0,"2017-18","Qatar","CSE","Genomics & Precision Medicine",7000,"QA55 QNBA 0000 0000 0171 3767 4504 3","QNB","QNBAQAQAXXX","Active",0]
[53,"Kripa Subhadra Keyan","Kripa Subhadra Keyan",210008078,0,"2017-18","India","CSE","Genomics & Precision Medicine",7000,"QA86 QNBA 0000 0000 0035 4435 2604 3","QNB","QNBAQAQA","Active",0]
[54,"Lubna Eliyan","Lubna  Eliyan",210008044,29040000572,"2017-18","Jordan","CSE","Computer Science & Engineering",7000,"QA65 MAFR 0000 0000 0006 4964 8010 0","Masraf Al Rayan","MAFRQAQAXXX","Active",0]
[55,"Maurantonio Caprolu","Maurantonio  Caprolu",210007311,28638000114,"2017-18","Italy","CSE","Computer Science & Engineering",7000,"QA57 QNBA 0000 0000 0035 4434 2704 3","QNB","QNBAQAQA","Active",0]
[56,"Md Shafiqul Islam","Md Shafiqul  Islam",210006054,28805030323,"2017-18","Bangladesh","CSE","Computer Science & Engineering",7000,"QA04 QNBA 0000 0000 0035 4411 8904 3","QNB","QNBAQAQA","Active",0]
[57,"Mounira Walid Jamil Fayyad","Mounira Walid Jamil Fayyad",210003920,29440000251,"2017-18","Jordan","CSE","Biomedical &Biological Science",7000,"QA23 QNBA 0000 0000 0035 3753 3404 3","QNB","QNBAQAQAXXX","Active",0]
[58,"Naela Mahmoud","Naela  Mahmoud",210007239,28673600922,"2017-18","Sudan","CSE","Genomics &Precision Medicine",5000,"QA40 DOHB 0220 0340 1790 0100 1000 0","Doha Bank","DOHBQAQA","Active",0]
[59,"Omar Adel Ibrahim","Omar Adel Ibrahim",210007516,28881800414,"2017-18","Egypt","CSE","Cybersecurity",5000,"QA74 MAFR 0000 0000 0006 5324 8110 0","Masraf Al Rayan","MAFRQAQAXXX","Active",0]
[60,"Reem Subhi Mohammad Al-Disi","Reem Subhi Mohammad Al Disi",210007651,29140000269,"2017-18","Jordan","CSE","Genomics & Precision Medicine",7000,"QA03 MAFR 0000 0000 0006 5141 2600 1","Masraf Al Rayan","MAFRQAQAXXX","Active",0]
[61,"Rim Abdul Kader Mousa Bacha","Rim Abdul Kader Mousa Bacha",210007511,29476000237,"2017-18","Syrian Arab Republic","CSE","Biological &Biomedical Science",5000,"QA82 QIIB 0000 0000 4442 0487 0220 1","Qatar Islamic International Bank","QIIBQAQA","Active",0]
[62,"Sabah Mariyam","Sabah  Mariyam",210006683,29535600084,"2017-18","India","CSE","Sustainable Energy",5000,"QA49 QNBA 0000 0000 0171 4130 4604 3","QNB","QNBAQAQAXXX","Active",0]
[63,"Safa Salim","Safa  Salim",210007333,29435600335,"2017-18","India","CSE","Biological &Biomedical Scs",5000,"QA93 DOHB 0211 0204 9800 0100 2000 0    ","Doha Bank","DOHBQAQAWBB","Active",0]
[64,"Samar Elkhalifa","Samar Elkhalifa",210007211,28973600083,"2017-18","Sudan","CSE","Sustainable Environment",7000,"QA83 QISB 0000 0000 0111 4041 1001 9","Qatar Islamic Bank (QIB)","QISBQAQA","Active",0]
[65,"Sanaa Sharari","Sanaa Ali Sharari",210004046,29299900437,"2017-18","Palestinian Territory, Occupie","CSE","Biomedical &Biological Science",7000,"QA76 QNBA 0000 0000 0035 3859 1404 3","QNB",0,"Active",0]
[66,"Sarah Namany","sarah  namany",210007214,29550400325,"2017-18","Morocco","CSE","Sustainable Energy",5000,"QA47 QNBA 0000 0000 0035 4408 1404 3","QNB","QNBAQAQAXXX","Active",0]
[67,"Sarmadia Ashraf","Sarmadia Ashraf",210008026,27635644330,"2017-18","India","CSE","Genomics & Precision Medicine",7000,"QA73 QIIB 0000 0000 2007 1267 5220 1","Qatar Islamic International Bank","QIIBQAQA","Active",0]
[68,"Shifa Zuhara","Shifa Zuhara",210007317,29535600083,"2017-18","India","CSE","Sustainable Environment",5000,"QA83 QNBA 0000 0000 0171 4130 4504 3","QNB","QNBAQAQAXXX","Active",0]
[69,"Sura Takiddin","Sura Takiddin",210007524,28876000059,"2017-18","Syrian Arab Republic","CSE","Cybersecurity",5000,"QA02 QISB 0000 0000 0102 8448 3002 2","QIB","QISBQAQA","Active",0]
[70,"Syed Hassan Mehdi","Syed Hassan Mehdi",210007878,29458601621,"2017-18","Pakistan","CSE",{"$error":"#N/A"},5000,"QA23 QNBA 0000 0000 0035 2837 6604 3","QNB","QNBAQAQA","Active",0]
[71,"Zeenath Safira","Zeenath Safira",210008076,28735600078,"2017-18","India","CSE","Genomics & Precision Medicine",7000,"QA89 QNBA 0000 0000 0060 2191 0904 3","QNB, city Centre branch","QNBAQAQA","Active",0]
[72,"Ummkulthum Ismail Umlai","Umm-Kulthum Ismail Umlai",210004499,29540400002,"2017-18","Kenya","CSE","Genomics & Precision Medicine",7000,"QA70 QNBA 0000 0000 0035 7104 9904 3","Qatar National Bank",0,"Active",0]
[73,"Muhammad Ijaz","Muhammad Ijaz",210007562,0,"2017-18","Pakistan","CSE","Computer Science & Engineering",7000,"QA51QNBA000000000035548307043","QNB",0,"Active",0]
[74,"Muhammad Luqman","Muhammad  Luqman",210007571,0,"2017-18","Pakistan","CSE","Sustainable Energy",7000,"QA32QNBA000000000035548766001","QNB",0,"Active",0]
[75,"Simone Raponi","Simone Raponi",210008268,0,"2017-18","Italy","CSE","Computer Science & Engineering",7000,"QA81QNBA000000000035617741043","QNB",0,"Active",0]
[76,"Idris Omer Mohammed","IDRIS OMER MOHAMMED",210007494,28508000349,null,null,"CSE","Genomics &Precision Medicine",5000,"QA20QIIB0000 0000 3333 0364 2920 1","QIIB","QIIBQAQA","Active",0]
[77,"Lara Gamgoum","Lara Hesham Gamgoum",210004898,29481800814,"2017-18","Egypt","CSE","Genomics &Precision Medicine",5000,"QA62 DOHB 0230 0277 0140 0100 2000 0","Doha Bank","DOHBQAQA","Study Abroad",0]
[78,"Xiao Qiang",null,210005991,29481800814,"2017-18","China","CSE","Computer Science & Engineering",7000,"QA38 QNBA 0000 0000 0035 4424 4904 3","QNB","QNBAQAQA","Active",0]
[79,"Nuha Swaidan",null,210007522,null,"2017-18","Jordan","CSE","Genomics &Precision Medicine",5000,"QA21QISB000000000150951290010","Qatar Islamic Bank",null,"?","New Student not on Argos yet; scholarship agreement available"]
[]
[]
[{"$nulls":8},"               QR",{"$f":"SUM(J15:J93)","v":{"v":577000,"d":"577,000"}},null,"Dr. Hamish Mackey"]

{"sheet":"Sheet1","index":1,"n_rows":254,"n_cols":10,"rows_kept":254,"hidden":true}
[]
["QID","SPRIDEN_ID","SPRIDEN_FIRST_NAME","SPRIDEN_MI","SPRIDEN_LAST_NAME","SFRSTCR_TERM_CODE","ADMIT_TERM","Name Full",null,"Nationality"]
["EB3088972",210004022,"Augusto","Manuel","Lucas",201820,201610,{"$f":"CONCATENATE(C3,\" \",D3,\" \",E3)","v":"Augusto Manuel Lucas"},"EB3088972","Philippines"]
[29743400006,210004850,"Abdulrahman","Mohamed","ElKelani",201820,201710,{"$f":"CONCATENATE(C4,\" \",D4,\" \",E4)","v":"Abdulrahman Mohamed ElKelani"},29743400006,"Libyan Arab Jamahiriya"]
[null,210007180,"Mohamed",null,"Al Mohannadi",201820,201810,"Mohamed  Al Mohannadi",null,"Qatar"]
[29863401677,210004028,"Mohamed","Ahmed","Al-horr",201820,201610,"Mohamed Ahmed Al-horr",29863401677,"Qatar"]
[29860800243,210004650,"Johanne Gren","Duhay","Medina",201820,201710,"Johanne Gren Duhay Medina",29860800243,"Philippines"]
[29758601464,210004655,"Shaheer","Ahmed","Bakali",201820,201710,"Shaheer Ahmed Bakali",29758601464,"Pakistan"]
[29899900257,210004732,"Rania",null,"Elsharafa",201820,201710,"Rania  Elsharafa",29899900257,"Palestinian Territory, Occupie"]
[null,210004890,"Tala","Basem","Anabtawi",201820,201710,"Tala Basem Anabtawi",null,"United States"]
[29981800536,210007477,"Mahmoud","Mohamed","ELraei",201820,201810,"Mahmoud Mohamed ELraei",29981800536,"Egypt"]
[29858601871,210007760,"Asra","Saeed","Bashir",201820,201810,"Asra Saeed Bashir",29858601871,"Pakistan"]
[29581802527,210005311,"Omar","Elwalid","Elshal",201820,201710,"Omar Elwalid Elshal",29581802527,"Egypt"]
[null,210007479,"Ghassan","Marwan","Saad",201820,201810,"Ghassan Marwan Saad",null,"Palestinian Territory, Occupie"]
[30081800701,210007753,"Shorok",null,"Ayman",201820,201810,"Shorok  Ayman",30081800701,"Egypt"]
[null,210005246,"Mohamed",null,"Amara",201820,201710,"Mohamed  Amara",null,"Tunisia"]
[29163403713,210005479,"Mohammad","Ahmad","Al-Sooj",201820,201710,"Mohammad Ahmad Al-Sooj",29163403713,"Qatar"]
[29805000160,210005821,"Zinia","Jaha","Jalal",201820,201810,"Zinia Jaha Jalal",29805000160,"Bangladesh"]
[29873600071,210004020,"Almiqdad","Jamal Musa","Elzein",201820,201610,"Almiqdad Jamal Musa Elzein",29873600071,"Sudan"]
[29735601200,210004030,"Safiya",null,"Jan",201820,201610,"Safiya  Jan",29735601200,"India"]
[null,210007478,"Moza","Hamad","Alkaabi",201820,201810,"Moza Hamad Alkaabi",null,"Qatar"]
[29881801181,210007960,"Sara",null,"Gadelmoula",201820,201810,"Sara  Gadelmoula",29881801181,"Egypt"]
[29663402112,210004023,"Bashayer"," Abdulla","Al-Mohammed",201820,201610,"Bashayer  Abdulla Al-Mohammed",29663402112,"Qatar"]
[935390,210004232,"Muza","Jassim","Alobaidan",201820,201610,"Muza Jassim Alobaidan",935390,"Qatar"]
[29676000114,210004651,"Mhd Talal",null,"Al Mahmalji",201820,201710,"Mhd Talal  Al Mahmalji",29676000114,"Syrian Arab Republic"]
[30063400623,210007414,"Mohammed","Nasser N A","Al-Naimi",201820,201810,"Mohammed Nasser N A Al-Naimi",30063400623,"Qatar"]
[29763403228,210004049,"Zaynab","Hussein","Makki",201820,201610,"Zaynab Hussein Makki",29763403228,"Qatar"]
[29863402012,210004201,"Muna"," Abdulaziz","Al-sulaiti",201820,201610,"Muna  Abdulaziz Al-sulaiti",29863402012,"Qatar"]
[29842200061,210004595,"kenana",null,"Dalle",201820,201710,"kenana  Dalle",29842200061,"Lebanon"]
[29701200074,210004050,"Selmane","Nouar","Tabet",201820,201610,"Selmane Nouar Tabet",29701200074,"Algeria"]
[28299900331,210004902,"Amna","Solyman Zaid","AbouNahia",201820,201710,"Amna Solyman Zaid AbouNahia",28299900331,"Palestinian Territory, Occupie"]
[29263402031,210008133,"Majed","Mohammed","Al-Nisf",201820,201810,"Majed Mohammed Al-Nisf",29263402031,"Qatar"]
[29358600442,210004508,"Aqsa",null,"Nazir",201820,201710,"Aqsa  Nazir",29358600442,"Pakistan"]
[28481807826,210005303,"Omar","Mohamed Marzouk","Ibrahim",201820,201710,"Omar Mohamed Marzouk Ibrahim",28481807826,"Egypt"]
[26284000198,210007551,"Saleh",null,"Musleh",201820,201810,"Saleh  Musleh",26284000198,"United States"]
[27699900013,210005172,"Wael","Rady Mohamed Khalil","Radwan",201820,201710,"Wael Rady Mohamed Khalil Radwan",27699900013,"Palestinian Territory, Occupie"]
[28481809041,210007436,"Ahmed","Mosaad","Eldaraa",201820,201810,"Ahmed Mosaad Eldaraa",28481809041,"Egypt"]
[29235620528,210004339,"Dabeeruddin",null,"Syed",201820,201710,"Dabeeruddin  Syed",29235620528,"India"]
[28763400514,210008017,"Aljazi","Nasseer","Aljabor",201820,201810,"Aljazi Nasseer Aljabor",28763400514,"Qatar"]
[28881811099,210008039,"Anas",null,"Abdel Rahman",201820,201810,"Anas  Abdel Rahman",28881811099,"Egypt"]
[29263404368,210005068,"Abdulaziz","Yousuf","Al-Homaid",201820,201710,"Abdulaziz Yousuf Al-Homaid",29263404368,"Qatar"]
[29163402686,210005331,"Noora","Mohammed","Al-Maslamani",201820,201710,"Noora Mohammed Al-Maslamani",29163402686,"Qatar"]
[29081801098,210005423,"Shaymaa","Fawzi","Khalifa",201820,201710,"Shaymaa Fawzi Khalifa",29081801098,"Egypt"]
[29363404074,210005441,"Alanood",null,"Alkuwari",201820,201710,"Alanood  Alkuwari",29363404074,"Qatar"]
[29563404777,210006204,"Sarah",null,"Al Hussaini",201820,201810,"Sarah  Al Hussaini",29563404777,"Qatar"]
[29463401652,210007942,"Noora",null,"Al-Mulla",201820,201810,"Noora  Al-Mulla",29463401652,"Qatar"]
[29235620532,210004883,"Ameema",null,"Zainab",201820,201710,"Ameema  Zainab",29235620532,"India"]
[29299900393,210005071,"ALI","KHALIL","ELDOUS",201820,201710,"ALI KHALIL ELDOUS",29299900393,"Palestinian Territory, Occupie"]
[27768200192,210005765,"sharoug",null,"alkhater",201820,201810,"sharoug  alkhater",27768200192,"Qatar"]
[29458601672,210008040,"Faran",null,"Farooq",201820,201810,"Faran  Farooq",29458601672,"Pakistan"]
[29063403595,210005329,"Afaf","Omar","AlSherawi",201820,201710,"Afaf Omar AlSherawi",29063403595,"Qatar"]
[29473600123,210007817,"Israa",null,"Elbashir",201820,201810,"Israa  Elbashir",29473600123,"Sudan"]
[28336400369,210008024,"Dalal","Abdureda","Alsharshani",201820,201810,"Dalal Abdureda Alsharshani",28336400369,"Qatar"]
[29540000180,210007522,"Nuha","Taysir","Swaidan",201820,201810,"Nuha Taysir Swaidan",29540000180,"Jordan"]
[28340000155,210008069,"Zenat","Mohmmd","Kanfosh",201820,201810,"Zenat Mohmmd Kanfosh",28340000155,"Jordan"]
[28508000349,210007494,"IDRIS","OMER","MOHAMMED",201820,201810,"IDRIS OMER MOHAMMED",28508000349,"Eritrea"]
[29370600178,210008023,"Munira","Ali","Aden",201820,201810,"Munira Ali Aden",29370600178,"Somalia"]
[29540000179,210006692,"Areej",null,"Mesleh",201820,201810,"Areej  Mesleh",29540000179,"Jordan"]
[28673600922,210007239,"Naela",null,"Mahmoud",201820,201810,"Naela  Mahmoud",28673600922,"Sudan"]
[28342200049,210004888,"Mahmoud","Mohamed","El Achi",201820,201710,"Mahmoud Mohamed El Achi",28342200049,"Lebanon"]
[28876000059,210007524,"Sura",null,"Takiddin",201820,201810,"Sura  Takiddin",28876000059,"Syrian Arab Republic"]
[28863401330,210005070,"Saleh",null,"Almannai",201820,201710,"Saleh  Almannai",28863401330,"Qatar"]
[28963404316,210005405,"Abdulaziz",null,"Al-Thani",201820,201710,"Abdulaziz  Al-Thani",28963404316,"Qatar"]
[29363401576,210005410,"Maryam",null,"Al-Fehani",201820,201710,"Maryam  Al-Fehani",29363401576,"Qatar"]
[28363401526,210005393,"Eman","Mohammed","Radi",201820,201710,"Eman Mohammed Radi",28363401526,"Qatar"]
[29358600740,210005257,"Talal",null,"Shoeb",201820,201710,"Talal  Shoeb",29358600740,"Pakistan"]
[28599900087,210005180,"Eman","Mohamed","Abouzohri",201820,201710,"Eman Mohamed Abouzohri",28599900087,"Qatar"]
[29063402028,210005171,"Ahmed","Khalil","Abdulla",201820,201710,{"$f":"CONCATENATE(C68,\" \",D68,\" \",E68)","v":"Ahmed Khalil Abdulla"},29063402028,"Qatar"]
[29463401465,210008123,"Adnan","Mahmoud","Fekri",201820,201810,"Adnan Mahmoud Fekri",29463401465,"Qatar"]
[29363403828,210008035,"Yousef","Eassa","Al-Shriem",201820,201810,"Yousef Eassa Al-Shriem",29363403828,"Qatar"]
[29163400888,210008016,"Abdulrahman","Misfer","Al-Hababi",201820,201810,"Abdulrahman Misfer Al-Hababi",29163400888,"Qatar"]
[29458601621,210007878,"Syed Hassan",null,"Mehdi",201820,201810,"Syed Hassan  Mehdi",29458601621,"Pakistan"]
[29435601181,210005297,"Priyanka","GopalSinh","Dodia",201820,201710,"Priyanka GopalSinh Dodia",29435601181,"India"]
[28763402948,210005412,"Fatima","Ahmed","Saifaldeen",201820,201710,"Fatima Ahmed Saifaldeen",28763402948,"Qatar"]
[29263402873,210007875,"Maryam","Jamal","Al-Ammari",201820,201810,"Maryam Jamal Al-Ammari",29263402873,"Qatar"]
[28881800414,210007516,"Omar","Adel","Ibrahim",201820,201810,"Omar Adel Ibrahim",28881800414,"Egypt"]
[29363400090,210005327,"Abdulaziz","Hamed","Al-Marwani",201820,201710,"Abdulaziz Hamed Al-Marwani",29363400090,"Qatar"]
[29440000587,210005386,"Aseel","Ahmad","Ghazal",201820,201710,"Aseel Ahmad Ghazal",29440000587,"Jordan"]
[29299900234,210005578,"Hala",null,"Abou El Oula",201820,201810,"Hala  Abou El Oula",29299900234,"Palestinian Territory, Occupie"]
[29088600352,210006089,"MOHAMMED M. A.",null,"AL-SADI",201820,201810,"MOHAMMED M. A.  AL-SADI",29088600352,"Yemen"]
[29263404698,210005169,"Ahmad","nasser","Alkuwari",201820,201710,"Ahmad nasser Alkuwari",29263404698,"Qatar"]
[28863401880,210005380,"Amna","Nasser","Almejali",201820,201710,"Amna Nasser Almejali",28863401880,"Qatar"]
[28863400595,210005417,"Mohammed","Eassa","Alshriem",201820,201710,"Mohammed Eassa Alshriem",28863400595,"Qatar"]
[29363403811,210005795,"Saeed","Hamad","Al-Marri",201820,201810,"Saeed Hamad Al-Marri",29363403811,"Qatar"]
[28863402788,210007826,"SHAHEEN","SAAD","AL-KAABI",201820,201810,"SHAHEEN SAAD AL-KAABI",28863402788,"Qatar"]
[null,210008015,"Essa",null,"AlKubaisi",201820,201810,"Essa  AlKubaisi",null,"Qatar"]
[null,210008037,"Isra","Mohamed","Ali",201820,201810,"Isra Mohamed Ali",null,"Libyan Arab Jamahiriya"]
[29063403815,210005286,"Ghada",null,"Mubarak",201820,201710,"Ghada  Mubarak",29063403815,"Qatar"]
[29563404133,210007510,"Aisha","Abdulla H A","Al-Mulla",201820,201810,"Aisha Abdulla H A Al-Mulla",29563404133,"Qatar"]
[28335650815,210006883,"Gaurav",null,"Thareja",201820,201810,"Gaurav  Thareja",28335650815,"India"]
[29140000221,210003935,"Sara","Fuad Ahmed","Owaida",201820,201610,"Sara Fuad Ahmed Owaida",29140000221,"Jordan"]
[29476000237,210007511,"Rim","Abdul Kader","Mousa Bacha",201820,201810,"Rim Abdul Kader Mousa Bacha",29476000237,"Syrian Arab Republic"]
[29573600364,210006493,"Asma",null,"Elashi",201820,201810,"Asma  Elashi",29573600364,"Palestinian Territory, Occupie"]
[28663402865,210005277,"Muna","Nasser","AL-Noubi",201820,201710,"Muna Nasser AL-Noubi",28663402865,"Qatar"]
[28540000288,210004429,"Yasmeen","Mahmoud","Salameh",201820,201710,"Yasmeen Mahmoud Salameh",28540000288,"Jordan"]
[28563404076,210004882,"Maryam","Saleh","Al Motawa",201820,201710,"Maryam Saleh Al Motawa",28563404076,"Qatar"]
[29081800115,210004449,"Karim","Esmat","Shalaby",201820,201710,"Karim Esmat Shalaby",29081800115,"Egypt"]
[29435601629,210004495,"Bushra",null,"Memon",201820,201710,"Bushra  Memon",29435601629,"India"]
[29163403820,210005811,"Maha","Abdulla","AL-Thani",201820,201810,"Maha Abdulla AL-Thani",29163403820,"Qatar"]
[28955400010,210005072,"Heba","Rashid","Yasin",201820,201710,"Heba Rashid Yasin",28955400010,"New Zealand"]
[null,210004411,"Sara",null,"ALTamimi",201820,201710,"Sara  ALTamimi",null,"Qatar"]
[29063402440,210003998,"Mohammed","Ibrahim","Al-Housani",201820,201610,"Mohammed Ibrahim Al-Housani",29063402440,"Qatar"]
[29535600084,210006683,"Sabah",null,"Mariyam",201820,201810,"Sabah  Mariyam",29535600084,"India"]
[29236800102,210004829,"Omar","Farook","Alrawi",201820,201710,"Omar Farook Alrawi",29236800102,"Iraq"]
[29550400325,210007214,"Sarah",null,"Namany",201820,201810,"Sarah  Namany",29550400325,"Morocco"]
[29350400478,210004971,"Safae",null,"Sali",201820,201710,"Safae  Sali",29350400478,"Morocco"]
[29163403535,210005322,"Maryam","Ali","Al-Hail",201820,201810,"Maryam Ali Al-Hail",29163403535,"Qatar"]
[29063401228,210004215,"Sara","S.","AlMulla",201820,201610,"Sara S. AlMulla",29063401228,"Qatar"]
[29263403066,210007429,"Saleh",null,"Al-Hor",201820,201810,"Saleh  Al-Hor",29263403066,"Qatar"]
[29163402921,210004513,"Aisha","Hamad","Al-Rumaihi",201820,201710,"Aisha Hamad Al-Rumaihi",29163402921,"Qatar"]
[29363403169,210005024,"Abdulwahab","Abdulla","Bukshaisha",201820,201710,"Abdulwahab Abdulla Bukshaisha",29363403169,"Qatar"]
[29363402315,210005308,"Wadha",null,"Al-Thani",201820,201810,"Wadha  Al-Thani",29363402315,"Qatar"]
[null,210004514,"Meaad","Yousef","Al-Jassim",201820,201710,"Meaad Yousef Al-Jassim",null,"Qatar"]
[29040001275,210004675,"Hani",null,"Ababneh",201820,201710,"Hani  Ababneh",29040001275,"Jordan"]
[null,210007430,"Shaikha",null,"Al-Nuaimi",201820,201810,"Shaikha  Al-Nuaimi",null,"Qatar"]
[29079200549,210004803,"Ebubekir","Sıddık","Sahin",201820,201710,"Ebubekir Sıddık Sahin",29079200549,"Turkey"]
[28463401918,210004039,"Balqes","Mohsin","Saeed",201820,201610,"Balqes Mohsin Saeed",28463401918,"Qatar"]
[28905006966,210004673,"Mehzabeen",null,"Mannan",201820,201710,"Mehzabeen  Mannan",28905006966,"Bangladesh"]
[28763401324,210004677,"Khalid","Saqr","Alhajri",201820,201710,"Khalid Saqr Alhajri",28763401324,"Qatar"]
[28663400814,210004511,"Abdulrahman",null,"Al tamimi",201820,201710,"Abdulrahman  Al tamimi",28663400814,"Qatar"]
[28204800054,210005476,"Haya","Saleh","Alyasi",201820,201710,"Haya Saleh Alyasi",28204800054,"Qatar"]
[29535600083,210007317,"Shifa",null,"Zuhara",201820,201810,"Shifa  Zuhara",29535600083,"India"]
[28963400577,210005233,"Reem","Hassan","ALNaama",201820,201710,"Reem Hassan ALNaama",28963400577,"Qatar"]
[28958603079,210003950,"Saad","Ghani Ullah","Hafiz",201820,201610,"Saad Ghani Ullah Hafiz",28958603079,"Pakistan"]
[29058604486,210004672,"Usman","Bin","Shahid",201820,201710,"Usman Bin Shahid",29058604486,"Pakistan"]
[28463402786,210003946,"Hanadi","Ghanim","AL- Thani",201820,201610,"Hanadi Ghanim AL- Thani",28463402786,"Qatar"]
[29163400623,210007368,"Fatima","Essa","Al-Thawadi",201820,201810,"Fatima Essa Al-Thawadi",29163400623,"Qatar"]
[29163400206,210005028,"Mohammed","Ibrahim A S","Al-Marzooqi",201820,201710,"Mohammed Ibrahim A S Al-Marzooqi",29163400206,"Qatar"]
[28763402986,210007852,"mohammed","ali","alghamdi",201820,201810,"mohammed ali alghamdi",28763402986,"Qatar"]
[28899900457,210004903,"Kholoud","Khalil","Aldous",201820,201710,"Kholoud Khalil Aldous",28899900457,"Palestinian Territory, Occupie"]
[29563403598,210007540,"Noor","Hussain","Al-Ansari",201820,201810,"Noor Hussain Al-Ansari",29563403598,"Qatar"]
[28681800007,210005166,"Hend","Kamal","Gedawy",201820,201710,{"$f":"CONCATENATE(C132,\" \",D132,\" \",E132)","v":"Hend Kamal Gedawy"},28681800007,"Egypt"]
[29115600557,210005563,"Tsz Ngai",null,"Lin",201820,201720,"Tsz Ngai  Lin",29115600557,"China"]
[null,210005390,"Kamela","Ali","Al-Mannai",201820,201710,"Kamela Ali Al-Mannai",null,"Qatar"]
[28963403594,210005379,"Hind","Ali","Almerekhi",201820,201710,"Hind Ali Almerekhi",28963403594,"Qatar"]
[28399900515,210005378,"Ghadeer","Said","AbuOda",201820,201710,"Ghadeer Said AbuOda",28399900515,"Palestinian Territory, Occupie"]
[28143400039,210005228,"Abdurrahman",null,"Elbasir",201820,201710,"Abdurrahman  Elbasir",28143400039,"Liberia"]
[28963400636,210005289,"Khalid","Mohammed","Al-Kubaisi",201820,201710,"Khalid Mohammed Al-Kubaisi",28963400636,"Qatar"]
[28763400971,210007673,"Ali","Fahad","Al-Qahtani",201820,201810,"Ali Fahad Al-Qahtani",28763400971,"Qatar"]
[28349900003,210005898,"Edin",null,"Salkovic",201820,201810,"Edin  Salkovic",28349900003,"Yugoslavia"]
[29463402084,210005294,"Alkhzami","Salman A H","Al-Harami",201820,201710,"Alkhzami Salman A H Al-Harami",29463402084,"Qatar"]
[29163402572,210005062,"Jaber","Sadiqe","Al-khori",201820,201710,"Jaber Sadiqe Al-khori",29163402572,"Qatar"]
[27699900029,210005055,"Sami",null,"Elzeiny",201820,201710,"Sami  Elzeiny",27699900029,"Palestinian Territory, Occupie"]
[28256600748,210004884,"Bilikis","Oluwatoyin","Banire",201820,201710,"Bilikis Oluwatoyin Banire",28256600748,"Nigeria"]
[null,210008268,"Simone",null,"Raponi",201820,201820,"Simone  Raponi",null,"Italy"]
[28958604524,210004909,"Atiq","Ur","Rehman",201820,201710,"Atiq Ur Rehman",28958604524,"Pakistan"]
[27163400443,210005056,"Aref",null,"Al-Tamimi",201820,201710,"Aref  Al-Tamimi",27163400443,"Qatar"]
[26983400003,210005333,"Masoud","Udi","Mwinyi",201820,201710,"Masoud Udi Mwinyi",26983400003,"Tanzania, United Republic of"]
[28299900124,210006162,"Mohnad",null,"Abunada",201820,201810,"Mohnad  Abunada",28299900124,"Palestinian Territory, Occupie"]
[28638000114,210007311,"Maurantonio",null,"Caprolu",201820,201810,"Maurantonio  Caprolu",28638000114,"Italy"]
[28163403217,210005603,"Ali",null,"Al-Rashid",201820,201720,"Ali  Al-Rashid",28163403217,"Qatar"]
[28836400224,210005797,"Hamed",null,"Al-Shaibani",201820,201810,"Hamed  Al-Shaibani",28836400224,"Qatar"]
[28915600961,210005991,"Qiang",null,"Xiao",201820,201810,"Qiang  Xiao",28915600961,"China"]
[28805030323,210006054,"Md Shafiqul",null,"Islam",201820,201810,"Md Shafiqul  Islam",28805030323,"Bangladesh"]
[28072400156,210008043,"Javier",null,"Hernandez Fernandez",201820,201810,"Javier  Hernandez Fernandez",28072400156,"Spain"]
[29040000572,210008044,"Lubna",null,"Eliyan",201820,201810,"Lubna  Eliyan",29040000572,"Jordan"]
[28099900202,210004908,"Aboubakr","Ahmed","Aqle",201820,201710,"Aboubakr Ahmed Aqle",28099900202,"Palestinian Territory, Occupie"]
[null,210007562,"Muhammad",null,"Ijaz",201820,201810,"Muhammad  Ijaz",null,"Pakistan"]
[28636800050,210005225,"AlHasan","Adnan","AlSammarraie",201820,201710,"AlHasan Adnan AlSammarraie",28636800050,"Bahrain"]
[27651200016,210005251,"Sana","Faiyz","Alfarsi",201820,201710,"Sana Faiyz Alfarsi",27651200016,"Qatar"]
[29001200111,210005288,"Elmahdi Abderrahim",null,"Bentafat",201820,201710,"Elmahdi Abderrahim  Bentafat",29001200111,"Algeria"]
[29363405028,210007444,"Danya","Ahmed","Saifaldeen",201820,201810,"Danya Ahmed Saifaldeen",29363405028,"Qatar"]
[28863404386,210007950,"Haya","A","Al-Thani",201820,201810,"Haya A Al-Thani",28863404386,"Qatar"]
[28963404379,210003924,"Hanadi","Mohammed","Al-Mohsin",201820,201610,"Hanadi Mohammed Al-Mohsin",28963404379,"Qatar"]
[29042200042,210008163,"Maha","Hussin","Hassan",201820,201810,"Maha Hussin Hassan",29042200042,"Lebanon"]
[28735600078,210008076,"Zeenath",null,"Safira",201820,201810,"Zeenath  Safira",28735600078,"India"]
[28781809491,210007495,"Eman","Wehedy Elsayed","Abdelsalam",201820,201810,"Eman Wehedy Elsayed Abdelsalam",28781809491,"Egypt"]
[29540400002,210004499,"Umm-Kulthum","Ismail","Umlai",201820,201810,"Umm-Kulthum Ismail Umlai",29540400002,"Kenya"]
[28788600425,210007497,"Wafa","Abdulsalam Abdulrazzaq","al-Ameri",201820,201810,"Wafa Abdulsalam Abdulrazzaq al-Ameri",28788600425,"Yemen"]
[null,210008078,"KRIPA","SUBHADRA","KEYAN",201820,201810,"KRIPA SUBHADRA KEYAN",null,"India"]
[28776002527,210007507,"Iman",null,"Hawari",201820,201810,"Iman  Hawari",28776002527,"Syrian Arab Republic"]
[29140000269,210007651,"Reem","Subhi Mohammad","Al Disi",201820,201810,"Reem Subhi Mohammad Al Disi",29140000269,"Jordan"]
[28673602007,210008063,"Ghada","Yousif Mohammed","Yousif",201820,201810,"Ghada Yousif Mohammed Yousif",28673602007,"Sudan"]
[null,210008183,"Kholoud",null,"Bastaki",201820,201810,"Kholoud  Bastaki",null,"Qatar"]
[29073601478,210008027,"Amal","Elfatih","abdelmageed",201820,201810,"Amal Elfatih abdelmageed",29073601478,"Sudan"]
[27635644330,210008026,"Sarmadia",null,"Ashraf",201820,201810,"Sarmadia  Ashraf",27635644330,"India"]
[28640000341,210006152,"Yasmin","Walid","Abu Aqel",201820,201810,"Yasmin Walid Abu Aqel",28640000341,"Jordan"]
[28463402655,210003919,"Noor","Ali","Al-Maslamani",201820,201610,"Noor Ali Al-Maslamani",28463402655,"Qatar"]
[29299900437,210004046,"Sanaa","Ali","Sharari",201820,201810,"Sanaa Ali Sharari",29299900437,"Palestinian Territory, Occupie"]
[29440000251,210003920,"Mounira","Walid Jamil","Fayyad",201820,201810,"Mounira Walid Jamil Fayyad",29440000251,"Jordan"]
[28382600193,210003922,"Ahmad",null,"Najjar",201820,201610,"Ahmad  Najjar",28382600193,"United Kingdom"]
[27512400214,210003934,"Sahar","Isa","Daas",201820,201610,"Sahar Isa Daas",27512400214,"Canada"]
[28363403040,210003992,"Ghaneya","Mesaad","Al-Khadairi",201820,201810,"Ghaneya Mesaad Al-Khadairi",28363403040,"Qatar"]
[28935629152,210004492,"Drishya","Maria","George",201820,201710,"Drishya Maria George",28935629152,"India"]
[28982600266,210007237,"Hibah",null,"Shaath",201820,201810,"Hibah  Shaath",28982600266,"England"]
[28670600001,210003927,"Asha","Abdelsalam Ali","Elmi",201820,201610,"Asha Abdelsalam Ali Elmi",28670600001,"Somalia"]
[28540000086,210004571,"Arwa","A.H.","Aldaalis",201820,201710,"Arwa A.H. Aldaalis",28540000086,"Palestinian Territory, Occupie"]
[28163401858,210003929,"Bakhita","Rashid","Meqbel",201820,201610,"Bakhita Rashid Meqbel",28163401858,"Qatar"]
[28426200001,210004358,"Idil",null,"Ahmed",201820,201710,"Idil  Ahmed",28426200001,"Djibouti"]
[28636400054,210004614,"Ayeshah","Yaghoub","Madani",201820,201710,"Ayeshah Yaghoub Madani",28636400054,"Iran (Islamic Republic Of)"]
[29040000311,210005086,"Ayat","Samir Mah'd","Hammad",201820,201710,"Ayat Samir Mah'd Hammad",29040000311,"Jordan"]
[28235654617,210005791,"TAHIR",null,"ABDULREHMAN",201820,201720,"TAHIR  ABDULREHMAN",28235654617,"India"]
[29163400793,210003918,"Aisha","MOHD","Al-Qahtani",201820,201810,"Aisha MOHD Al-Qahtani",29163400793,"Qatar"]
[28499900173,210003921,"Eman","Khaleel Rashied","Aldous",201820,201810,"Eman Khaleel Rashied Aldous",28499900173,"Palestinian Territory, Occupie"]
[28476001451,210004371,"Abdulghani",null,"Khilan",201820,201710,"Abdulghani  Khilan",28476001451,"Syrian Arab Republic"]
[28663401459,210004835,"Kholoud","Nedham","Alshafai",201820,201710,{"$f":"CONCATENATE(C196,\" \",D196,\" \",E196)","v":"Kholoud Nedham Alshafai"},28663401459,"Qatar"]
[29435600335,210007333,"Safa",null,"Salim",201820,201810,"Safa  Salim",29435600335,"India"]
[28376002164,210003933,"Yaser","Ammar","AlSarraj",201820,201810,"Yaser Ammar AlSarraj",28376002164,"Syrian Arab Republic"]
[28350400006,210008421,"Khaoula",null,"Errafii",201820,201820,"Khaoula  Errafii",28350400006,"Morocco"]
[28363402387,210002996,"Manal","Mohamed","Al Salama",201820,201710,"Manal Mohamed Al Salama",28363402387,"Qatar"]
[28399900199,210006367,"Ahmad","Majed","Alsarraj",201820,201810,"Ahmad Majed Alsarraj",28399900199,"Palestinian Territory, Occupie"]
[27884000360,210003957,"Dana",null,"Abdeen",201820,201610,"Dana  Abdeen",27884000360,"United States"]
[28363400535,210003964,"Ali","Mohammed","Al-sharshani",201820,201610,"Ali Mohammed Al-sharshani",28363400535,"Qatar"]
[28935629006,210003987,"Tejvir",null,"Singh",201820,201610,"Tejvir  Singh",28935629006,"India"]
[null,210007571,"Muhammad",null,"Luqman",201820,201820,"Muhammad  Luqman",null,"Pakistan"]
[27363400927,210000024,"Hassan","Mohd","Al-Naimi",201820,201610,"Hassan Mohd Al-Naimi",27363400927,"Qatar"]
[28963402835,210000029,"Muneera","Saad","Al-Qahtani",201820,201610,"Muneera Saad Al-Qahtani",28963402835,"Qatar"]
[29140000549,210004790,"Sarah","Iyad Mohammad","Yousef",201820,201710,"Sarah Iyad Mohammad Yousef",29140000549,"Jordan"]
[28958604525,210004773,"Athar",null,"Kamal",201820,201710,"Athar  Kamal",28958604525,"Pakistan"]
[28563400424,210004503,"Abdulrahman","Hassan","Al-Kaabi",201820,201710,"Abdulrahman Hassan Al-Kaabi",28563400424,"Qatar"]
[28758604809,210003980,"Shoukat","Alim","Khan",201820,201610,"Shoukat Alim Khan",28758604809,"Pakistan"]
[28858604890,210003976,"Ahmer","Ali Bozdar","Baloch",201820,201610,"Ahmer Ali Bozdar Baloch",28858604890,"Pakistan"]
[28915600962,210007868,"Xuan",null,"Li",201820,201810,"Xuan  Li",28915600962,"China"]
[28363400958,210004796,"Amera","Rashid","Al Mannai",201820,201810,"Amera Rashid Al Mannai",28363400958,"Qatar"]
[29058603829,210003977,"Faisal","Ahmed","Mumtaz",201820,201610,"Faisal Ahmed Mumtaz",29058603829,"Pakistan"]
[28379201466,210003961,"Ibrahim",null,"Ari",201820,201610,"Ibrahim  Ari",28379201466,"Turkey"]
[29015600802,210007938,"Qiangshun",null,"Guan",201820,201810,"Qiangshun  Guan",29015600802,"China"]
[27463400432,210004794,"Khalid","Mohammed","Al-Khori",201820,201710,"Khalid Mohammed Al-Khori",27463400432,"Qatar"]
[28863400637,210004506,"Sara","Yousuf","Al-Haidous",201820,201710,"Sara Yousuf Al-Haidous",28863400637,"Qatar"]
[28879200783,210003962,"Irfan",null,"Batur",201820,201610,"Irfan  Batur",28879200783,"Turkey"]
[28558603712,210003960,"Waqas",null,"Nawaz",201820,201610,"Waqas  Nawaz",28558603712,"Pakistan"]
[28963404362,210000221,"Sara","Ahmad Jassim","Al-Hail",201820,201710,"Sara Ahmad Jassim Al-Hail",28963404362,"Qatar"]
[28776000034,210005020,"Ahmed",null,"AlNouss",201820,201710,"Ahmed  AlNouss",28776000034,"Syrian Arab Republic"]
[28858604676,210003963,"Shahzada","Pamir","Aly",201820,201610,"Shahzada Pamir Aly",28858604676,"Pakistan"]
[28556600717,210003956,"Ahmed",null,"Sodiq",201820,201610,"Ahmed  Sodiq",28556600717,"Nigeria"]
[28799900321,210007569,"Enas",null,"Fares",201820,201810,"Enas  Fares",28799900321,"Palestinian Territory, Occupie"]
[27363400600,210006240,"Houd",null,"Al-Obaidli",201820,201810,"Houd  Al-Obaidli",27363400600,"Qatar"]
[28779200915,210003979,"Nurettin",null,"Sezer",201820,201610,"Nurettin  Sezer",28779200915,"Turkey"]
[28958604620,210004792,"Furqan",null,"Tahir",201820,201710,"Furqan  Tahir",28958604620,"Pakistan"]
[28999900252,210006929,"duaa",null,"abumaali",201820,201810,"duaa  abumaali",28999900252,"Palestinian Territory, Occupie"]
[28350400534,210007212,"Yahya",null,"Zakaria",201820,201810,"Yahya  Zakaria",28350400534,"Morocco"]
[27963400233,210000017,"Ali","Attiq","Al-Yaeeshi",201820,201610,"Ali Attiq Al-Yaeeshi",27963400233,"Qatar"]
[29073601675,210003978,"Mohamed","Atta Elmanan","Bakhit Alhaj",201820,201610,"Mohamed Atta Elmanan Bakhit Alhaj",29073601675,"Sudan"]
[28973600083,210007211,"Samar",null,"Elkhalifa",201820,201810,"Samar  Elkhalifa",28973600083,"Sudan"]
[29014400033,210000200,"Dillan",null,"Roshan",201820,201810,"Dillan  Roshan",29014400033,"Sri Lanka"]
[28663401285,210005237,"Khalid","Saleh","Al-Menhali",201820,201710,"Khalid Saleh Al-Menhali",28663401285,"Qatar"]
[27484000461,210004975,"Nagla","Kamal","Mohamed",201820,201710,"Nagla Kamal Mohamed",27484000461,"United States"]
[null,210004390,"Zakarya",null,"Othman",201820,201710,"Zakarya  Othman",null,"Iraq"]
[28463403155,210004037,"Reem","Saleh","Al-Mansoori",201820,201610,"Reem Saleh Al-Mansoori",28463403155,"Qatar"]
[28736400071,210003993,"Ahmad","Mohammed Abdollah Kewany","Fard",201820,201610,"Ahmad Mohammed Abdollah Kewany Fard",28736400071,"Iran (Islamic Republic Of)"]
[28936800026,210004793,"Ayman",null,"Raouf",201820,201710,"Ayman  Raouf",28936800026,"New Zealand"]
["N 004714925",210003984,"Dema","Abdulrahman","Almasri",201820,201610,"Dema Abdulrahman Almasri","N 004714925","Syrian Arab Republic"]
[29063403226,210006252,"Naela","Ahmad","Al-Thani",201820,201810,"Naela Ahmad Al-Thani",29063403226,"Qatar"]
[28736400101,210003974,"Hajar","Ali Hussain","Farzaneh",201820,201610,"Hajar Ali Hussain Farzaneh",28736400101,"Iran (Islamic Republic Of)"]
[28263402355,210008034,"Mona","Matar","Alkuwari",201820,201810,"Mona Matar Alkuwari",28263402355,"Qatar"]
[null,210007734,"Ismail","Walid Khalil","Almanassra",201820,201810,"Ismail Walid Khalil Almanassra",null,"Jordan"]
[28899900169,210004759,"Rand","Essam","ElShorafa",201820,201710,"Rand Essam ElShorafa",28899900169,"Palestinian Territory, Occupie"]
[29042200125,210003999,"Mouhammad",null,"Hijab",201820,201810,"Mouhammad  Hijab",29042200125,"Lebanon"]
[29008000470,210006020,"Haile","Tecle","Woldesellasse",201820,201810,"Haile Tecle Woldesellasse",29008000470,"Eritrea"]
[297107,210003994,"Yehia","Mohammad Ali","Manawi",201820,201610,"Yehia Mohammad Ali Manawi",297107,"Palestinian Territory, Occupie"]
[29063403052,210004389,"Abdulrahman",null,"Abu-Nada",201820,201710,"Abdulrahman  Abu-Nada",29063403052,"Qatar"]
[29135605490,210003985,"Raghavendran",null,"Sivasubramanian",201820,201610,"Raghavendran  Sivasubramanian",29135605490,"India"]
[28963404160,210003975,"Btool","Hashim","Mohamed",201820,201610,"Btool Hashim Mohamed",28963404160,"Qatar"]
[28640000201,210006031,"Malek",null,"Mohammad",201820,201810,"Malek  Mohammad",28640000201,"Jordan"]

{"sheet":"Jan 18","index":2,"n_rows":145,"n_cols":8,"rows_kept":145,"hidden":true,"merged":[[37,6,37,7],[38,6,38,7],[87,6,87,7],[88,6,88,7],[143,6,143,7],[144,6,144,7]]}
[]
[]
[]
[]
[]
["Ref. HBKU/CSE/Stipend/031"]
["To:   Accounts Payable Manager / QF-Finance"]
["CC:   Executive Director / QF-Finance"]
["CC:  Chief Financial Officer / HBKU-Finance"]
["Date: 16/01/2018"]
[]
["Subject: Stipend payment request for the month of Jan 2018"]
[]
["Please arrange for the payment of QR 124,000/- stipend to the following students receiving scholarships via bank transfer to their respective below bank accounts: "]
[]
[null,"Student Name","Citizenship","University","Amount","IBAN ","Bank Name","Swift Code"]
[1,"Tejvir Singh","India","HBKU",{"v":9000,"d":"9,000"},"QA13 QNBA 0000 0000 0230 3767 6804 3","QNB - Qatar Foundation"]
[2,"Waqas Nawaz","Pakistan","HBKU",{"v":9000,"d":"9,000"},"QA72 QNBA 0000 0000 0035 2471 6900 1","QNB - Qatar Foundation","QNBAQAQAXXX"]
[3,"Ahmed Sodiq","Nigeria","HBKU",{"v":9000,"d":"9,000"},"QA02 QNBA 0000 0000 0035 3751 7204 3","QNB"]
[4,"Ahmad Najjar","UK","HBKU",{"v":9000,"d":"9,000"},"QA39 QISB 0115 4313 0060 2001 3037 1 ","Qatar Islamic Bank (QIB) "]
[5,"Ibrahim Ari","Turkey","HBKU",{"v":9000,"d":"9,000"},"QA84 QNBA 0000 0000 0035 3736 2904 3","QNB - Qatar Foundation","QNBAQAQA"]
[6,"Shoukat Khan","Pakistan","HBKU",{"v":9000,"d":"9,000"},"QA43 QNBA 0000 0000 0035 3757 1004 3","QNB - Qatar Foundation","QNBAQAQA"]
[7,"Nurettin Sezer","Turkey","HBKU",{"v":9000,"d":"9,000"},"QA21 QNBA 0000 0000 0035 3736 2804 3","QNB - Qatar Foundation","QNBAQAQA"]
[8,"Irfan Batur","Turkey","HBKU",{"v":9000,"d":"9,000"},"QA40 QNBA 0000 0000 0035 3751 8804 3","QNB - Qatar Foundation","QNBAQAQA"]
[9,"Faisal Mumtaz","Pakistan","HBKU",{"v":9000,"d":"9,000"},"QA14 QNBA 0000 0000 0035 3757 0804 3","QNB - Qatar Foundation","QNBAQAQA"]
[10,"Mohamed Alhaj","Sudan","HBKU",{"v":9000,"d":"9,000"},"QA78 QISB 0000 0000 0150 4583 6001 0 ","Qatar Islamic Bank QIB"]
[11,"Shahzada Pamir Aly","Pakistan","HBKU",{"v":9000,"d":"9,000"},"QA72 QNBA 0000 0000 0035 3757 1204 3","QNB","QNBAQAQA"]
[12,"Hajar Farzaneh","Iran","HBKU",{"v":9000,"d":"9,000"},"QA34 QNBA 0000 0000 0027 3352 6904 3","QNB"]
[13,"Ahmer Balouch","Pakistan","HBKU",{"v":9000,"d":"9,000"},"QA94 QNBA 0000 0000 0035 3879 7904 3","QNB"]
[14,"Sanaa Sharari","Palestine","HBKU",{"v":7000,"d":"7,000"},"QA76 QNBA 0000 0000 0035 3859 1404 3","QNB"]
[]
[{"$nulls":4},{"$f":"SUM(E17:E31)","v":{"v":124000,"d":"124,000.00"}}]
[]
[]
[]
[]
[]
[{"$nulls":5},"Dr.  Mounir Hamdi","Dr. Khaled Letaief"]
[{"$nulls":5},"Dean - HBKU CSE","Provost - HBKU"]
[]
["Ref. HBKU/CSE/Stipend/031"]
["To:   Accounts Payable Manager / QF-Finance"]
["CC:   Executive Director / QF-Finance"]
["CC:  Chief Financial Officer / HBKU-Finance"]
["Date: 16/01/2018"]
[]
["Subject: Stipend payment request for the month of Jan 2018"]
["Please arrange for the payment of QR 274,500/- stipend to the following students receiving scholarships via bank transfer to their respective below bank accounts:"]
[]
[null,"Student Name","Citizenship","University","Amount","IBAN ","Bank Name","Swift Code"]
[1,"Abdulghani Khilan","Syria","HBKU",{"v":9000,"d":"9,000"},"QA59 QNBA 0000 0000 0035 4116 6804 3","QNB - Qatar Foundation","QNBAQAQA"]
[2,"Arwa Aldaalis","Palestinian","HBKU",{"v":9000,"d":"9,000"},"QA68 QISB 0109 4889 0110 1001 7190 7","Qatar Islamic Bank"]
[3,"Ayat Hammad","Jordan","HBKU",{"v":9000,"d":"9,000"},"QA76 MAFR 0000 0000 0006 5113 0800 1","Masraf Al Rayan"]
[4,"Bushra Memon","India","HBKU",{"v":7500,"d":"7,500"},"QA36 QISB 0121 2645 0020 2001 6259 1","Qatar Islamic Bank (QIB)"]
[5,"Drishya George","India","HBKU",{"v":9000,"d":"9,000"},"QA14 CBQA 0000 0000 4610 5195 8710 1","Commercial Bank of Qatar"]
[6,"Karim Shalaby","Egypt","HBKU",{"v":7500,"d":"7,500"},"QA03 QIIB 0000 0000 2225 0442 2000 1","Qatar International Islamic Bank"]
[7,"Heba Yasin","New Zealand","HBKU",{"v":7500,"d":"7,500"},"QA30 QISB 0000 0000 0112 0565 8001 8","Qatar Islamic Bank"]
[8,"Yasmeen Salameh","Jordan","HBKU",{"v":7500,"d":"7,500"},"QA60 QIIB 0000 0000 6646 5657 1720 1","Qatar International Islamic Bank"]
[9,"Dabeeruddin Syed","India","HBKU",{"v":7500,"d":"7,500"},"QA26 QNBA 0000 0000 0035 4094 1804 3","QNB - Qatar Foundation","QNBAQAQA"]
[10,"Ebubekir Siddik Sahin","Turkey","HBKU",{"v":7500,"d":"7,500"},"QA08 QNBA 0000 0000 0035 4123 9704 3","QNB"]
[11,"Furqan Tahir","Pakistan","HBKU",{"v":9000,"d":"9,000"},"QA15 QNBA 0000 0000 0035 4132 2704 3","QNB"]
[12,"Hani Ababneh","Jordan","HBKU",{"v":7500,"d":"7,500"},"QA27 BRWA 0000 0000 0200 0002 4069 9","Barwa Bank"]
[13,"Rand ElShorafa","Palestine","HBKU",{"v":9000,"d":"9,000"},"QA40 QNBA 0000 0000 0224 4131 5304 3","QNB"]
[14,"Saad Hafiz","Pakistan","HBKU",{"v":7500,"d":"7,500"},"QA08 BBME 0000 0000 0001 1353 6700 1","HSBC "]
[15,"Safae Sali","Morocco","HBKU",{"v":7500,"d":"7,500"},"QA17 QNBA 0000 0000 0035 4095 9804 3","QNB"]
[16,"Usman Shahid","Pakistan","HBKU",{"v":7500,"d":"7,500"},"QA10 QNBA 0000 0000 0035 4100 2904 3","QNB"]
[17,"Ayman Raouf","New Zealand","HBKU",{"v":9000,"d":"9,000"},"QA73 QNBA 0000 0000 0055 4765 7504 9","QNB"]
[18,"Athar Kamal","Pakistan","HBKU",{"v":9000,"d":"9,000"},"QA56 QNBA 0000 0000 0035 4114 3704 3","QNB"]
[19,"Mehzabeen Mannan","Bangladesh","HBKU",{"v":7500,"d":"7,500"},"QA57 QNBA 0000 0000 0035 4123 8704 3","QNB"]
[20,"Nagla Mohamed","United States","HBKU",{"v":9000,"d":"9,000"},"QA44 QISB 0000 0000 0112 1507 2001 2","QIB"]
[21,"Sara Ahmad","Jordan","HBKU",{"v":9000,"d":"9,000"},"QA19 QIIB 0000 0000 2222 4900 4520 1","Qatar International Islamic Bank"]
[22,"Priyanka Gopalsinh Dodia","Indian","HBKU",{"v":7500,"d":"7,500"},"QA42 DOHB 0206 0239 4970 0100 2000 0","DOHA BANK"]
[23,"Aseel Ahmad Ghazal","Jordan","HBKU",{"v":7500,"d":"7,500"},"QA73 QISB 0000 0000 0111 9088 2001 7","Qatar Islamic Bank"]
[24,"Ali Khalil Eldous","Palestinian","HBKU",{"v":7500,"d":"7,500"},"QA02 QISB 0000 0000 0111 9134 8001 1","Qatar Islamic Bank (QIB)"]
[25,"Ameema  Zainab","Indian","HBKU",{"v":7500,"d":"7,500"},"QA94 QNBA 0000 0000 0035 4094 1604 3","QNB"]
[26,"Bilikis Oluwatoyin Banire","Nigerian","HBKU",{"v":9000,"d":"9,000"},"QA38 QNBA 0000 0000 0035 4123 7904 3","QNB"]
[27,"Atiq ur Rehman","Pakistani","HBKU",{"v":9000,"d":"9,000"},"QA37 QNBA 0000 0000 0035 4114 2904 3","QNB"]
[28,"Hend Kamal Gedawy","Egyptian","HBKU",{"v":9000,"d":"9,000"},"QA27 MAFR 0000 0000 0004 3043 7400 1","Masraf Al Rayan"]
[29,"Kholoud Khalil Aldous","Palestinian","HBKU",{"v":9000,"d":"9,000"},"QA41 QNBA 0000 0000 0225 4015 4500 1","QNB"]
[30,"Abdurrahman Mohamed Elbasir","Libyan","HBKU",{"v":9000,"d":"9,000"},"QA02 QNBA 0000 0000 0035 4094 1304 3","QNB"]
[31,"Ghadeer Abuoda","Palestinian","HBKU",{"v":9000,"d":"9,000"},"QA11 QNBA 0000 0000 0035 4157 3204 3","QNB"]
[32,"Tsz Ngai Lin","Chinese","HBKU",{"v":9000,"d":"9,000"},"QA06 QNBA 0000 0000 0035 4225 2504 3","QNB"]
[33,"Tahir Abdul Rehman","Indian","HBKU",{"v":9000,"d":"9,000"},"QA43 MAFR 0000 0000 0006 5343 7500 1","Masraf Al Rayan"]
[{"$nulls":4},{"$f":"SUM(E51:E83)","v":{"v":274500,"d":"274,500"}}]
[]
[]
[]
[{"$nulls":5},"Dr.  Mounir Hamdi","Dr. Khaled Letaief"]
[{"$nulls":5},"Dean - HBKU CSE","Provost - HBKU"]
[]
[]
["Ref. HBKU/CSE/Stipend/031"]
["To:   Accounts Payable Manager / QF-Finance"]
["CC:   Executive Director / QF-Finance"]
["CC:  Chief Financial Officer / HBKU-Finance"]
["Date: 16/01/2018"]
[]
["Subject: Stipend payment request for the month of Jan 2018"]
["Please arrange for the payment of QR 243,000/- stipend to the following students receiving scholarships via bank transfer to their respective below bank accounts:"]
[]
[null,"Student Name","Citizenship","University","Amount","IBAN ","Bank Name","Swift Code"]
[1,"Asma Elashi","Palestinian ","HBKU",{"v":5000,"d":"5,000"},"QA77 ABQQ 0000 0000 0027 3406 9550 1","Ahli Bank","ABQQQAQA"]
[2,"Rim Abdul Kader Mousa Bacha","Qatar","HBKU",{"v":5000,"d":"5,000"},"QA82 QIIB 0000 0000 4442 0487 0220 1","Qatar Islamic International Bank","QIIBQAQA"]
[3,"Eman Aldous","Palestinian ","HBKU",{"v":7000,"d":"7,000"},"QA10 QISB 0000 0000 0110 9548 5001 3","Qatar Islamic Bank (QIB)","QISBQAQA"]
[4,"Mounira Walid Jamil Fayyad","Qatar","HBKU",{"v":7000,"d":"7,000"},"QA23 QNBA 0000 0000 0035 3753 3404 3","QNB","QNBAQAQAXXX"]
[5,"Safa Salim","India","HBKU",{"v":7000,"d":"7,000"},"QA93 DOHB 0211 0204 9800 0100 2000 0    ","Doha Bank","DOHBQAQAWBB"]
[6,"Sabah Mariyam","India","HBKU",{"v":5000,"d":"5,000"},"QA49 QNBA 0000 0000 0171 4130 4604 3","QNB","QNBAQAQAXXX"]
[7,"Sarah Namany","Morocco","HBKU",{"v":5000,"d":"5,000"},"QA47 QNBA 0000 0000 0035 4408 1404 3","QNB","QNBAQAQAXXX"]
[8,"Shifa Zuhara","India","HBKU",{"v":5000,"d":"5,000"},"QA83 QNBA 0000 0000 0171 4130 4504 3","QNB","QNBAQAQAXXX"]
[9,"Haile Tecle Woldesellasse","Eritrea","HBKU",{"v":7000,"d":"7,000"},"QA95 QNBA 0000 0000 0035 4418 9104 3","QNB","QNBAQAQAXXX"]
[10,"Ismail Walid Khalil Almanassra","Jordan","HBKU",{"v":7000,"d":"7,000"},"QA72 QNBA 0000 0000 0035 4434 1804 3","QNB","QNBAQAQAXXX"]
[11,"Samar Elkhalifa","Sudan","HBKU",{"v":7000,"d":"7,000"},"QA83 QISB 0000 0000 0111 4041 1001 9","Qatar Islamic Bank (QIB)","QISBQAQA"]
[12,"Faran Farooq","Pakistan","HBKU",{"v":5000,"d":"5,000"},"QA41 QNBA 0000 0000 0035 2820 4804 3","QNB","QNBAQAQAXXX"]
[13,"Isra Mohamed Ali","Libyan ","HBKU",{"v":5000,"d":"5,000"},"QA21 QNBA 0000 0000 0060 4446 3604 3","QNB","QNBAQAQAXXX"]
[14,"Omar Adel Ibrahim","Egyptian","HBKU",{"v":5000,"d":"5,000"},"QA74 MAFR 0000 0000 0006 5324 8110 0","Masraf Al Rayan","MAFRQAQAXXX"]
[15,"Sura Takiddin","USA","HBKU",{"v":5000,"d":"5,000"},"QA02 QISB 0000 0000 0102 8448 3002 2","QIB","QISBQAQA"]
[16,"Syed Hassan Mehdi","Pakistan","HBKU",{"v":5000,"d":"5,000"},"QA23 QNBA 0000 0000 0035 2837 6604 3","QNB","QNBAQAQA"]
[17,"Edin Salkovic","Montserrat","HBKU",{"v":7000,"d":"7,000"},"QA49 QNBA 0000 0000 0035 4407 7404 3","QNB","QNBAQAQA"]
[18,"Lubna Eliyan","Jordan","HBKU",{"v":7000,"d":"7,000"},"QA65 MAFR 0000 0000 0006 4964 8010 0","Masraf Al Rayan","MAFRQAQAXXX"]
[19,"Maurantonio Caprolu","Italy","HBKU",{"v":7000,"d":"7,000"},"QA57 QNBA 0000 0000 0035 4434 2704 3","QNB","QNBAQAQA"]
[20,"Md Shafiqul Islam","Bangladesh","HBKU",{"v":7000,"d":"7,000"},"QA04 QNBA 0000 0000 0035 4411 8904 3","QNB","QNBAQAQA"]
[21,"Xiao Qiang ","China","HBKU",{"v":7000,"d":"7,000"},"QA38 QNBA 0000 0000 0035 4424 4904 3","QNB","QNBAQAQA"]
[22,"Israa Elbashir","Sudan","HBKU",{"v":5000,"d":"5,000"},"QA36 MAFR 0000 0000 0006 5143 3900 1","Masraf Al Rayan","MAFRQAQAXXX"]
[23,"Naela Mahmoud","Sudan","HBKU",{"v":5000,"d":"5,000"},"QA40 DOHB 0220 0340 1790 0100 1000 0","Doha Bank","DOHBQAQA"]
[24,"Eman  Wehedy Elsayed Abdelsalam","Egypt","HBKU",{"v":7000,"d":"7,000"},"QA06 QIIB 0000 0000 2007 1139 3020 1","Qatar international Islamic bank","QIIBQAQA"]
[25,"Ghada Mohammed Yousif","Sudan","HBKU",{"v":7000,"d":"7,000"},"QA54 QNBA 0000 0000 0035 4422 2604 3","QNB","QNBAQAQA"]
[26,"Kripa Subhadra Keyan","India","HBKU",{"v":7000,"d":"7,000"},"QA86 QNBA 0000 0000 0035 4435 2604 3","QNB","QNBAQAQA"]
[27,"Sarmadia Ashraf","India","HBKU",{"v":7000,"d":"7,000"},"QA73 QIIB 0000 0000 2007 1267 5220 1","Qatar Islamic International Bank","QIIBQAQA"]
[28,"Zeenath Safira","India","HBKU",{"v":7000,"d":"7,000"},"QA89 QNBA 0000 0000 0060 2191 0904 3","QNB, city Centre branch","QNBAQAQA"]
[29,"Areej Mesleh","Jordan","HBKU",{"v":5000,"d":"5,000"},"QA25 QNBA 0000 0000 0224 3201 3904 3","QNB","QNBAQAQAXXX"]
[30,"Reem Subhi Mohammad Al-Disi","Jordan","HBKU",{"v":7000,"d":"7,000"},"QA03 MAFR 0000 0000 0006 5141 2600 1","Masraf Al Rayan","MAFRQAQAXXX"]
[31,"Iman Hawari","Syrian","HBKU",{"v":7000,"d":"7,000"},"QA28 QNBA 0000 0000 0035 4444 9204 3","QNB","QNBAQAQAXXX"]
[32,"Kholoud Bastaki","Qatar","HBKU",{"v":7000,"d":"7,000"},"QA55 QNBA 0000 0000 0171 3767 4504 3","QNB","QNBAQAQAXXX"]
[33,"Amal Abdelmageed","Sudan","HBKU",{"v":7000,"d":"7,000"},"QA27 ABQQ 0000 0000 0027 3407 2550 1","Ahli Bank","ABQQQAQA"]
[34,"Sarah Al Hussaini","Qatar","HBKU",{"v":5000,"d":"5,000"},"QA72 MAFR 0000 0000 0010 5134 9810 0","Masraf Al Rayan","MAFRQAQAXXX"]
[35,"Lara Gamgoum","Egypt","HBKU",{"v":5000,"d":"5,000"},"QA62 DOHB 0230 0277 0140 0100 2000 0","Doha Bank","DOHBQAQA"]
[36,"Ummkulthum Ismail Umlai","Kenya","HBKU",{"v":7000,"d":"7,000"},"QA48QISB000000000150464770019","Qatar Islamic Bank"]
[37,"Muhammad Ijaz","Pakistan","HBKU",{"v":7000,"d":"7,000"},"QA51QNBA000000000035548307043","QNB"]
[38,"Muhammad Luqman","Pakistan","HBKU",{"v":7000,"d":"7,000"},"QA32QNBA000000000035548766001","QNB"]
[39,"Simone Raponi","Italy","HBKU",{"v":7000,"d":"7,000"},"QA81QNBA000000000035617741043","QNB"]
[{"$nulls":4},{"$f":"SUM(E102:E140)","v":{"v":243000,"d":"243,000"}}]
[]
[]
[{"$nulls":5},"Dr.  Mounir Hamdi","Dr. Khaled Letaief"]
[{"$nulls":5},"Dean - HBKU CSE","Provost - HBKU"]

{"sheet":"Sheet4","index":3,"n_rows":88,"n_cols":9,"rows_kept":88,"hidden":true}
[]
[null,"Student Name","Admittance Year","Citizenship","University","Amount","IBAN ","Bank Name","Swift Code"]
[1,"Tejvir Singh","2015-16","India","HBKU",{"v":9000,"d":"9,000"},"QA13 QNBA 0000 0000 0230 3767 6804 3","QNB - Qatar Foundation"]
[2,"Waqas Nawaz","2015-16","Pakistan","HBKU",{"v":9000,"d":"9,000"},"QA72 QNBA 0000 0000 0035 2471 6900 1","QNB - Qatar Foundation","QNBAQAQAXXX"]
[3,"Ahmed Sodiq","2015-16","Nigeria","HBKU",{"v":9000,"d":"9,000"},"QA02 QNBA 0000 0000 0035 3751 7204 3","QNB"]
[4,"Ahmad Najjar","2015-16","UK","HBKU",{"v":9000,"d":"9,000"},"QA39 QISB 0115 4313 0060 2001 3037 1 ","Qatar Islamic Bank (QIB) "]
[5,"Ibrahim Ari","2015-16","Turkey","HBKU",{"v":9000,"d":"9,000"},"QA84 QNBA 0000 0000 0035 3736 2904 3","QNB - Qatar Foundation","QNBAQAQA"]
[6,"Shoukat Alim Khan","2015-16","Pakistan","HBKU",{"v":9000,"d":"9,000"},"QA43 QNBA 0000 0000 0035 3757 1004 3","QNB - Qatar Foundation","QNBAQAQA"]
[7,"Nurettin Sezer","2015-16","Turkey","HBKU",{"v":9000,"d":"9,000"},"QA21 QNBA 0000 0000 0035 3736 2804 3","QNB - Qatar Foundation","QNBAQAQA"]
[8,"Irfan Batur","2015-16","Turkey","HBKU",{"v":9000,"d":"9,000"},"QA40 QNBA 0000 0000 0035 3751 8804 3","QNB - Qatar Foundation","QNBAQAQA"]
[9,"Faisal Ahmed Mumtaz","2015-16","Pakistan","HBKU",{"v":9000,"d":"9,000"},"QA14 QNBA 0000 0000 0035 3757 0804 3","QNB - Qatar Foundation","QNBAQAQA"]
[10,"Mohamed Atta Elmanan Bakhit Alhaj","2015-16","Sudan","HBKU",{"v":9000,"d":"9,000"},"QA78 QISB 0000 0000 0150 4583 6001 0 ","Qatar Islamic Bank QIB"]
[11,"Shahzada Pamir Aly","2015-16","Pakistan","HBKU",{"v":9000,"d":"9,000"},"QA72 QNBA 0000 0000 0035 3757 1204 3","QNB","QNBAQAQA"]
[12,"Hajar Ali Hussain Farzaneh","2015-16","Iran","HBKU",{"v":9000,"d":"9,000"},"QA34 QNBA 0000 0000 0027 3352 6904 3","QNB"]
[13,"Ahmer Ali Bozdar Baloch","2015-16","Pakistan","HBKU",{"v":9000,"d":"9,000"},"QA94 QNBA 0000 0000 0035 3879 7904 3","QNB"]
[14,"Sanaa Sharari","2015-16","Palestine","HBKU",{"v":7000,"d":"7,000"},"QA76 QNBA 0000 0000 0035 3859 1404 3","QNB"]
[1,"Abdulghani Khilan","2016-17","Syria","HBKU",{"v":9000,"d":"9,000"},"QA59 QNBA 0000 0000 0035 4116 6804 3","QNB - Qatar Foundation","QNBAQAQA"]
[2,"Arwa Aldaalis","2016-17","Palestinian","HBKU",{"v":9000,"d":"9,000"},"QA68 QISB 0109 4889 0110 1001 7190 7","Qatar Islamic Bank"]
[3,"Ayat Hammad","2016-17","Jordan","HBKU",{"v":9000,"d":"9,000"},"QA76 MAFR 0000 0000 0006 5113 0800 1","Masraf Al Rayan"]
[4,"Bushra Memon","2016-17","India","HBKU",{"v":7500,"d":"7,500"},"QA36 QISB 0121 2645 0020 2001 6259 1","Qatar Islamic Bank (QIB)"]
[5,"Drishya George","2016-17","India","HBKU",{"v":9000,"d":"9,000"},"QA14 CBQA 0000 0000 4610 5195 8710 1","Commercial Bank of Qatar"]
[6,"Karim Shalaby","2016-17","Egypt","HBKU",{"v":7500,"d":"7,500"},"QA03 QIIB 0000 0000 2225 0442 2000 1","Qatar International Islamic Bank"]
[7,"Heba Yasin","2016-17","New Zealand","HBKU",{"v":7500,"d":"7,500"},"QA30 QISB 0000 0000 0112 0565 8001 8","Qatar Islamic Bank"]
[8,"Yasmeen Salameh","2016-17","Jordan","HBKU",{"v":7500,"d":"7,500"},"QA60 QIIB 0000 0000 6646 5657 1720 1","Qatar International Islamic Bank"]
[9,"Dabeeruddin Syed","2016-17","India","HBKU",{"v":7500,"d":"7,500"},"QA26 QNBA 0000 0000 0035 4094 1804 3","QNB - Qatar Foundation","QNBAQAQA"]
[10,"Ebubekir Siddik Sahin","2016-17","Turkey","HBKU",{"v":7500,"d":"7,500"},"QA08 QNBA 0000 0000 0035 4123 9704 3","QNB"]
[11,"Furqan Tahir","2016-17","Pakistan","HBKU",{"v":9000,"d":"9,000"},"QA15 QNBA 0000 0000 0035 4132 2704 3","QNB"]
[12,"Hani Ababneh","2016-17","Jordan","HBKU",{"v":7500,"d":"7,500"},"QA27 BRWA 0000 0000 0200 0002 4069 9","Barwa Bank"]
[13,"Rand ElShorafa","2016-17","Palestine","HBKU",{"v":9000,"d":"9,000"},"QA40 QNBA 0000 0000 0224 4131 5304 3","QNB"]
[14,"Saad Hafiz","2016-17","Pakistan","HBKU",{"v":7500,"d":"7,500"},"QA08 BBME 0000 0000 0001 1353 6700 1","HSBC "]
[15,"Safae Sali","2016-17","Morocco","HBKU",{"v":7500,"d":"7,500"},"QA17 QNBA 0000 0000 0035 4095 9804 3","QNB"]
[16,"Usman Shahid","2016-17","Pakistan","HBKU",{"v":7500,"d":"7,500"},"QA10 QNBA 0000 0000 0035 4100 2904 3","QNB"]
[17,"Ayman Raouf","2016-17","New Zealand","HBKU",{"v":9000,"d":"9,000"},"QA73 QNBA 0000 0000 0055 4765 7504 9","QNB"]
[18,"Athar Kamal","2016-17","Pakistan","HBKU",{"v":9000,"d":"9,000"},"QA56 QNBA 0000 0000 0035 4114 3704 3","QNB"]
[19,"Mehzabeen Mannan","2016-17","Bangladesh","HBKU",{"v":7500,"d":"7,500"},"QA57 QNBA 0000 0000 0035 4123 8704 3","QNB"]
[20,"Nagla Mohamed","2016-17","United States","HBKU",{"v":9000,"d":"9,000"},"QA44 QISB 0000 0000 0112 1507 2001 2","QIB"]
[21,"Sara Ahmad","2016-17","Jordan","HBKU",{"v":9000,"d":"9,000"},"QA19 QIIB 0000 0000 2222 4900 4520 1","Qatar International Islamic Bank"]
[22,"Priyanka Gopalsinh Dodia","2016-17","Indian","HBKU",{"v":7500,"d":"7,500"},"QA42 DOHB 0206 0239 4970 0100 2000 0","DOHA BANK"]
[23,"Aseel Ahmad Ghazal","2016-17","Jordan","HBKU",{"v":7500,"d":"7,500"},"QA73 QISB 0000 0000 0111 9088 2001 7","Qatar Islamic Bank"]
[24,"Ali Khalil Eldous","2016-17","Palestinian","HBKU",{"v":7500,"d":"7,500"},"QA02 QISB 0000 0000 0111 9134 8001 1","Qatar Islamic Bank (QIB)"]
[25,"Ameema  Zainab","2016-17","Indian","HBKU",{"v":7500,"d":"7,500"},"QA94 QNBA 0000 0000 0035 4094 1604 3","QNB"]
[26,"Bilikis Oluwatoyin Banire","2016-17","Nigerian","HBKU",{"v":9000,"d":"9,000"},"QA38 QNBA 0000 0000 0035 4123 7904 3","QNB"]
[27,"Atiq ur Rehman","2016-17","Pakistani","HBKU",{"v":9000,"d":"9,000"},"QA37 QNBA 0000 0000 0035 4114 2904 3","QNB"]
[28,"Hend Kamal Gedawy","2016-17","Egyptian","HBKU",{"v":9000,"d":"9,000"},"QA27 MAFR 0000 0000 0004 3043 7400 1","Masraf Al Rayan"]
[29,"Kholoud Khalil Aldous","2016-17","Palestinian","HBKU",{"v":9000,"d":"9,000"},"QA41 QNBA 0000 0000 0225 4015 4500 1","QNB"]
[30,"Abdurrahman Mohamed Elbasir","2016-17","Libyan","HBKU",{"v":9000,"d":"9,000"},"QA02 QNBA 0000 0000 0035 4094 1304 3","QNB"]
[31,"Ghadeer Abuoda","2016-17","Palestinian","HBKU",{"v":9000,"d":"9,000"},"QA11 QNBA 0000 0000 0035 4157 3204 3","QNB"]
[32,"Tsz Ngai Lin","2016-17","Chinese","HBKU",{"v":9000,"d":"9,000"},"QA06 QNBA 0000 0000 0035 4225 2504 3","QNB"]
[33,"Tahir Abdul Rehman","2016-17","Indian","HBKU",{"v":9000,"d":"9,000"},"QA43 MAFR 0000 0000 0006 5343 7500 1","Masraf Al Rayan"]
[1,"Asma Elashi","2017-18","Palestinian ","HBKU",{"v":5000,"d":"5,000"},"QA77 ABQQ 0000 0000 0027 3406 9550 1","Ahli Bank","ABQQQAQA"]
[2,"Rim Abdul Kader Mousa Bacha","2017-18","Qatar","HBKU",{"v":5000,"d":"5,000"},"QA82 QIIB 0000 0000 4442 0487 0220 1","Qatar Islamic International Bank","QIIBQAQA"]
[3,"Eman Aldous","2017-18","Palestinian ","HBKU",{"v":7000,"d":"7,000"},"QA10 QISB 0000 0000 0110 9548 5001 3","Qatar Islamic Bank (QIB)","QISBQAQA"]
[4,"Mounira Walid Jamil Fayyad","2017-18","Qatar","HBKU",{"v":7000,"d":"7,000"},"QA23 QNBA 0000 0000 0035 3753 3404 3","QNB","QNBAQAQAXXX"]
[5,"Safa Salim","2017-18","India","HBKU",{"v":7000,"d":"7,000"},"QA93 DOHB 0211 0204 9800 0100 2000 0    ","Doha Bank","DOHBQAQAWBB"]
[6,"Sabah Mariyam","2017-18","India","HBKU",{"v":5000,"d":"5,000"},"QA49 QNBA 0000 0000 0171 4130 4604 3","QNB","QNBAQAQAXXX"]
[7,"Sarah Namany","2017-18","Morocco","HBKU",{"v":5000,"d":"5,000"},"QA47 QNBA 0000 0000 0035 4408 1404 3","QNB","QNBAQAQAXXX"]
[8,"Shifa Zuhara","2017-18","India","HBKU",{"v":5000,"d":"5,000"},"QA83 QNBA 0000 0000 0171 4130 4504 3","QNB","QNBAQAQAXXX"]
[9,"Haile Tecle Woldesellasse","2017-18","Eritrea","HBKU",{"v":7000,"d":"7,000"},"QA95 QNBA 0000 0000 0035 4418 9104 3","QNB","QNBAQAQAXXX"]
[10,"Ismail Walid Khalil Almanassra","2017-18","Jordan","HBKU",{"v":7000,"d":"7,000"},"QA72 QNBA 0000 0000 0035 4434 1804 3","QNB","QNBAQAQAXXX"]
[11,"Samar Elkhalifa","2017-18","Sudan","HBKU",{"v":7000,"d":"7,000"},"QA83 QISB 0000 0000 0111 4041 1001 9","Qatar Islamic Bank (QIB)","QISBQAQA"]
[12,"Faran Farooq","2017-18","Pakistan","HBKU",{"v":5000,"d":"5,000"},"QA41 QNBA 0000 0000 0035 2820 4804 3","QNB","QNBAQAQAXXX"]
[13,"Isra Mohamed Ali","2017-18","Libyan ","HBKU",{"v":5000,"d":"5,000"},"QA21 QNBA 0000 0000 0060 4446 3604 3","QNB","QNBAQAQAXXX"]
[14,"Omar Adel Ibrahim","2017-18","Egyptian","HBKU",{"v":5000,"d":"5,000"},"QA74 MAFR 0000 0000 0006 5324 8110 0","Masraf Al Rayan","MAFRQAQAXXX"]
[15,"Sura Takiddin","2017-18","USA","HBKU",{"v":5000,"d":"5,000"},"QA02 QISB 0000 0000 0102 8448 3002 2","QIB","QISBQAQA"]
[16,"Syed Hassan Mehdi","2017-18","Pakistan","HBKU",{"v":5000,"d":"5,000"},"QA23 QNBA 0000 0000 0035 2837 6604 3","QNB","QNBAQAQA"]
[17,"Edin Salkovic","2017-18","Montserrat","HBKU",{"v":7000,"d":"7,000"},"QA49 QNBA 0000 0000 0035 4407 7404 3","QNB","QNBAQAQA"]
[18,"Lubna Eliyan","2017-18","Jordan","HBKU",{"v":7000,"d":"7,000"},"QA65 MAFR 0000 0000 0006 4964 8010 0","Masraf Al Rayan","MAFRQAQAXXX"]
[19,"Maurantonio Caprolu","2017-18","Italy","HBKU",{"v":7000,"d":"7,000"},"QA57 QNBA 0000 0000 0035 4434 2704 3","QNB","QNBAQAQA"]
[20,"Md Shafiqul Islam","2017-18","Bangladesh","HBKU",{"v":7000,"d":"7,000"},"QA04 QNBA 0000 0000 0035 4411 8904 3","QNB","QNBAQAQA"]
[21,"Xiao Qiang ","2017-18","China","HBKU",{"v":7000,"d":"7,000"},"QA38 QNBA 0000 0000 0035 4424 4904 3","QNB","QNBAQAQA"]
[22,"Israa Elbashir","2017-18","Sudan","HBKU",{"v":5000,"d":"5,000"},"QA36 MAFR 0000 0000 0006 5143 3900 1","Masraf Al Rayan","MAFRQAQAXXX"]
[23,"Naela Mahmoud","2017-18","Sudan","HBKU",{"v":5000,"d":"5,000"},"QA40 DOHB 0220 0340 1790 0100 1000 0","Doha Bank","DOHBQAQA"]
[24,"Eman  Wehedy Elsayed Abdelsalam","2017-18","Egypt","HBKU",{"v":7000,"d":"7,000"},"QA06 QIIB 0000 0000 2007 1139 3020 1","Qatar international Islamic bank","QIIBQAQA"]
[25,"Ghada Mohammed Yousif","2017-18","Sudan","HBKU",{"v":7000,"d":"7,000"},"QA54 QNBA 0000 0000 0035 4422 2604 3","QNB","QNBAQAQA"]
[26,"Kripa Subhadra Keyan","2017-18","India","HBKU",{"v":7000,"d":"7,000"},"QA86 QNBA 0000 0000 0035 4435 2604 3","QNB","QNBAQAQA"]
[27,"Sarmadia Ashraf","2017-18","India","HBKU",{"v":7000,"d":"7,000"},"QA73 QIIB 0000 0000 2007 1267 5220 1","Qatar Islamic International Bank","QIIBQAQA"]
[28,"Zeenath Safira","2017-18","India","HBKU",{"v":7000,"d":"7,000"},"QA89 QNBA 0000 0000 0060 2191 0904 3","QNB, city Centre branch","QNBAQAQA"]
[29,"Areej Mesleh","2017-18","Jordan","HBKU",{"v":5000,"d":"5,000"},"QA25 QNBA 0000 0000 0224 3201 3904 3","QNB","QNBAQAQAXXX"]
[30,"Reem Subhi Mohammad Al-Disi","2017-18","Jordan","HBKU",{"v":7000,"d":"7,000"},"QA03 MAFR 0000 0000 0006 5141 2600 1","Masraf Al Rayan","MAFRQAQAXXX"]
[31,"Iman Hawari","2017-18","Syrian","HBKU",{"v":7000,"d":"7,000"},"QA28 QNBA 0000 0000 0035 4444 9204 3","QNB","QNBAQAQAXXX"]
[32,"Kholoud Bastaki","2017-18","Qatar","HBKU",{"v":7000,"d":"7,000"},"QA55 QNBA 0000 0000 0171 3767 4504 3","QNB","QNBAQAQAXXX"]
[33,"Amal Abdelmageed","2017-18","Sudan","HBKU",{"v":7000,"d":"7,000"},"QA27 ABQQ 0000 0000 0027 3407 2550 1","Ahli Bank","ABQQQAQA"]
[34,"Sarah Al Hussaini","2017-18","Qatar","HBKU",{"v":5000,"d":"5,000"},"QA72 MAFR 0000 0000 0010 5134 9810 0","Masraf Al Rayan","MAFRQAQAXXX"]
[35,"Lara Gamgoum","2017-18","Egypt","HBKU",{"v":5000,"d":"5,000"},"QA62 DOHB 0230 0277 0140 0100 2000 0","Doha Bank","DOHBQAQA"]
[36,"Ummkulthum Ismail Umlai","2017-18","Kenya","HBKU",{"v":7000,"d":"7,000"},"QA48QISB000000000150464770019","Qatar Islamic Bank"]
[37,"Muhammad Ijaz","2017-18","Pakistan","HBKU",{"v":7000,"d":"7,000"},"QA51QNBA000000000035548307043","QNB"]
[38,"Muhammad Luqman","2017-18","Pakistan","HBKU",{"v":7000,"d":"7,000"},"QA32QNBA000000000035548766001","QNB"]
[39,"Simone Raponi","2017-18","Italy","HBKU",{"v":7000,"d":"7,000"},"QA81QNBA000000000035617741043","QNB"]

{"sheet":"Argos data verification","index":4,"n_rows":259,"n_cols":22,"rows_kept":259,"hidden":true}
["QID","SPRIDEN_ID","SPRIDEN_FIRST_NAME","SPRIDEN_MI","SPRIDEN_LAST_NAME","SFRSTCR_TERM_CODE","ADMIT_TERM","STATUS","COLLEGE","Level","DEGREE","SPONSOR","SCHOLOARSHIP","ANNUAL_INVOICE","MAJOR","PROGRAM","Email","Nationality","Preffered_Phone","alternative_Phone"]
[29701200074,210004050,"Selmane","Nouar","Tabet",201820,201610,"Active","Science & Engineering","Undergraduate","Bachelor of Science"," ",null," ","Computer Engineering","BSc in Computer Engineering","SELTABET@hbku.edu.qa","Algeria",{"$f":"974-33693992","v":-33693018},{"$f":"974-33057812","v":-33056838},null,29701200074]
[29743400006,210004850,"Abdulrahman","Mohamed","ElKelani",201820,201710,"Active","Science & Engineering","Undergraduate","Bachelor of Science"," ",null," ","Computer Engineering","BSc in Computer Engineering","aelkelani@hbku.edu.qa","Libyan Arab Jamahiriya",-9747765151,null,null,29743400006]
["EB3088972",210004022,"Augusto","Manuel","Lucas",201820,201610,"Active","Science & Engineering","Undergraduate","Bachelor of Science"," ",null," ","Computer Engineering","BSc in Computer Engineering","AUGLUCAS@hbku.edu.qa",{"$nulls":4},"EB3088972"]
[null,"Philippines","974-33409868","974-55534398"]
[29858601871,210007760,"Asra","Saeed","Bashir",201820,201810,"Active","Science & Engineering","Undergraduate","Bachelor of Science"," ",null," ","Computer Engineering","BSc in Computer Engineering","assaeed@hbku.edu.qa","Pakistan","0092-3370386746",null,null,29858601871]
[29860800243,210004650,"Johanne Gren","Duhay","Medina",201820,201710,"Active","Science & Engineering","Undergraduate","Bachelor of Science"," ",null," ","Computer Engineering","BSc in Computer Engineering","jmedina@hbku.edu.qa","Philippines","974-66067279",null,null,29860800243]
[29758601464,210004655,"Shaheer","Ahmed","Bakali",201820,201710,"Active","Science & Engineering","Undergraduate","Bachelor of Science"," ",null," ","Computer Engineering","BSc in Computer Engineering","sbakali@hbku.edu.qa","Pakistan","974-33842949",null,null,29758601464]
[29899900257,210004732,"Rania",null,"Elsharafa",201820,201710,"Active","Science & Engineering","Undergraduate","Bachelor of Science"," ",null," ","Computer Engineering","BSc in Computer Engineering","relsharafa@hbku.edu.qa","Palestinian Territory, Occupie","974-70997711",null,null,29899900257]
[29981800536,210007477,"Mahmoud","Mohamed","ELraei",201820,201810,"Active","Science & Engineering","Undergraduate","Bachelor of Science"," ",null," ","Computer Engineering","BSc in Computer Engineering","melraei@hbku.edu.qa","Egypt","00974-66582926",null,null,29981800536]
[null,210004890,"Tala","Basem","Anabtawi",201820,201710,"Active","Science & Engineering","Undergraduate","Bachelor of Science"," ",null," ","Computer Engineering","BSc in Computer Engineering","tanabtawi@hbku.edu.qa","United States",{"$f":"974-77095894","v":-77094920}]
[29863401677,210004028,"Mohamed","Ahmed","Al-horr",201820,201610,"Active","Science & Engineering","Undergraduate","Bachelor of Science"," ",null," ","Computer Engineering","BSc in Computer Engineering","MOHALHORR@hbku.edu.qa","Qatar",{"$nulls":3},29863401677]
[30081800701,210007753,"Shorok",null,"Ayman",201820,201810,"Active","Science & Engineering","Undergraduate","Bachelor of Science"," ",null," ","Computer Engineering","BSc in Computer Engineering","saghonim@hbku.edu.qa","Egypt","974-55819823",null,null,30081800701]
[29581802527,210005311,"Omar","Elwalid","Elshal",201820,201710,"Active","Science & Engineering","Undergraduate","Bachelor of Science"," ",null," ","Computer Engineering","BSc in Computer Engineering","oelshal@hbku.edu.qa","Egypt","00974-33414517",null,null,29581802527]
[null,210007479,"Ghassan","Marwan","Saad",201820,201810,"Active","Science & Engineering","Undergraduate","Bachelor of Science"," ",null," ","Computer Engineering","BSc in Computer Engineering","gsaad@hbku.edu.qa","Palestinian Territory, Occupie","00961-70659402"]
[null,210005246,"Mohamed",null,"Amara",201820,201710,"Active","Science & Engineering","Undergraduate","Bachelor of Science"," ",null," ","Computer Engineering","BSc in Computer Engineering","mamara@hbku.edu.qa","Tunisia","974-66650902"]
[29805000160,210005821,"Zinia","Jaha","Jalal",201820,201810,"Active","Science & Engineering","Undergraduate","Bachelor of Science"," ",null," ","Computer Engineering","BSc in Computer Engineering","zjalal@hbku.edu.qa","Bangladesh","00974-77232744",null,null,29805000160]
[29163403713,210005479,"Mohammad","Ahmad","Al-Sooj",201820,201710,"Active","Science & Engineering","Undergraduate","Bachelor of Science"," ",null," ","Computer Engineering","BSc in Computer Engineering","malsooj@hbku.edu.qa","Qatar",-77000044,null,null,29163403713]
[29735601200,210004030,"Safiya",null,"Jan",201820,201610,"Active","Science & Engineering","Undergraduate","Bachelor of Science"," ",null," ","Computer Engineering","BSc in Computer Engineering","SAFKHAN@hbku.edu.qa","India","974-33652356",null,null,29735601200]
[null,210007478,"Moza","Hamad","Alkaabi",201820,201810,"Active","Science & Engineering","Undergraduate","Bachelor of Science"," ",null," ","Computer Engineering","BSc in Computer Engineering","mhalkaabi@hbku.edu.qa","Qatar","00974-55355622"]
[29881801181,210007960,"Sara",null,"Gadelmoula",201820,201810,"Active","Science & Engineering","Undergraduate","Bachelor of Science"," ",null," ","Computer Engineering","BSc in Computer Engineering","sgadelmoula@hbku.edu.qa","Egypt","974-66257667",null,null,29881801181]
[29873600071,210004020,"Almiqdad","Jamal Musa","Elzein",201820,201610,"Active","Science & Engineering","Undergraduate","Bachelor of Science"," ",null," ","Computer Engineering","BSc in Computer Engineering","ALMElzein@hbku.edu.qa",{"$nulls":4},29873600071]
[null,"Sudan","974-33234383","974-55297507"]
[29676000114,210004651,"Mhd Talal",null,"Al Mahmalji",201820,201710,"Active","Science & Engineering","Undergraduate","Bachelor of Science"," ",null," ","Computer Engineering","BSc in Computer Engineering","malmahmalji@hbku.edu.qa","Syrian Arab Republic","00974-66845656",null,null,29676000114]
[30063400623,210007414,"Mohammed","Nasser N A","Al-Naimi",201820,201810,"Active","Science & Engineering","Undergraduate","Bachelor of Science"," ",null," ","Computer Engineering","BSc in Computer Engineering","Mohammalnaimi@hbku.edu.qa","Qatar","00974-66067380",null,null,30063400623]
[29663402112,210004023,"Bashayer"," Abdulla","Al-Mohammed",201820,201610,"Active","Science & Engineering","Undergraduate","Bachelor of Science"," ",null," ","Computer Engineering","BSc in Computer Engineering","BASALMOHAMMED@hbku.edu.qa","Qatar",{"$nulls":3},29663402112]
[935390,210004232,"Muza","Jassim","Alobaidan",201820,201610,"Active","Science & Engineering","Undergraduate","Bachelor of Science"," ",null," ","Computer Engineering","BSc in Computer Engineering","malobaidan@hbku.edu.qa","Qatar",{"$nulls":3},935390]
[29763403228,210004049,"Zaynab","Hussein","Makki",201820,201610,"Active","Science & Engineering","Undergraduate","Bachelor of Science"," ",null," ","Computer Engineering","BSc in Computer Engineering","ZAYMAKKI@hbku.edu.qa","Qatar",{"$nulls":3},29763403228]
[11810,210004200,"Fatima","Abdulla","Al-thani",201820,201610,"Active","Science & Engineering","Undergraduate","Bachelor of Science"," ",null," ","Computer Engineering","BSc in Computer Engineering","falthani@hbku.edu.qa","Qatar","974-66739997",null,null,11810]
[29863402012,210004201,"Muna"," Abdulaziz","Al-sulaiti",201820,201610,"Active","Science & Engineering","Undergraduate","Bachelor of Science"," ",null," ","Computer Engineering","BSc in Computer Engineering","MUNALSULAITI@hbku.edu.qa","Qatar","974-55225441",null,null,29863402012]
[29842200061,210004595,"kenana",null,"Dalle",201820,201710,"Active","Science & Engineering","Undergraduate","Bachelor of Science"," ",null," ","Computer Engineering","BSc in Computer Engineering","kdalle@hbku.edu.qa","Lebanon","00974-66917579",null,null,29842200061]
[null,210007180,"Mohamed",null,"Al Mohannadi",201820,201810,"Active","Science & Engineering","Undergraduate","Bachelor of Science"," ",null," ","Computer Engineering","BSc in Computer Engineering","mohaalmohannadi@hbku.edu.qa","Qatar",{"$f":"974-70301980","v":-70301006}]
[28299900331,210004902,"Amna","Solyman Zaid","AbouNahia",201820,201710,"Active","Science & Engineering","Graduate","Master of Science"," ",null," ","Data Science and Engineering","Data Science and Engineering","aabounahia@hbku.edu.qa","Palestinian Territory, Occupie",{"$f":"974-55439343","v":-55438369},null,null,28299900331]
[29458601672,210008040,"Faran",null,"Farooq",201820,201810,"Active","Science & Engineering","Graduate","Master of Science"," ",null," ","Data Science and Engineering","Data Science and Engineering","fafarooq@hbku.edu.qa","Pakistan","00974-3365",null,null,29458601672]
[26284000198,210007551,"Saleh",null,"Musleh",201820,201810,"Active","Science & Engineering","Graduate","Master of Science"," ",null," ","Data Science and Engineering","Data Science and Engineering","smusleh@hbku.edu.qa","United States","974-5522",null,null,26284000198]
[28481807826,210005303,"Omar","Mohamed Marzouk","Ibrahim",201820,201710,"Active","Science & Engineering","Graduate","Master of Science"," ",null," ","Data Science and Engineering","Data Science and Engineering","oibrahim@hbku.edu.qa","Egypt",{"$f":"974-77775249","v":-77774275},null,null,28481807826]
[29358600442,210004508,"Aqsa",null,"Nazir",201820,201710,"Active","Science & Engineering","Graduate","Master of Science"," ",null," ","Data Science and Engineering","Data Science and Engineering","anazir@hbku.edu.qa","Pakistan","974-77666369",null,null,29358600442]
[27699900013,210005172,"Wael","Rady Mohamed Khalil","Radwan",201820,201710,"Active","Science & Engineering","Graduate","Master of Science"," ",null," ","Data Science and Engineering","Data Science and Engineering","wradwan@hbku.edu.qa","Palestinian Territory, Occupie","974-55563795",null,null,27699900013]
[28481809041,210007436,"Ahmed","Mosaad","Eldaraa",201820,201810,"Active","Science & Engineering","Graduate","Master of Science"," ",null," ","Data Science and Engineering","Data Science and Engineering","aeldaraa@hbku.edu.qa","Egypt","974-74438956",null,null,28481809041]
[28881811099,210008039,"Anas",null,"Abdel Rahman",201820,201810,"Active","Science & Engineering","Graduate","Master of Science"," ",null," ","Data Science and Engineering","Data Science and Engineering","aabdelrahman@hbku.edu.qa","Egypt",{"$f":"974-33733227","v":-33732253},null,null,28881811099]
[29235620528,210004339,"Dabeeruddin",null,"Syed",201820,201710,"Active","Science & Engineering","Graduate","Master of Science"," ",null," ","Data Science and Engineering","Data Science and Engineering","dsyed@hbku.edu.qa","India","91-8790020154",null,null,29235620528]
[28763400514,210008017,"Aljazi","Nasseer","Aljabor",201820,201810,"Active","Science & Engineering","Graduate","Master of Science"," ",null," ","Data Science and Engineering","Data Science and Engineering","aaljabor@hbku.edu.qa","Qatar","974-55901737",null,null,28763400514]
[29263404368,210005068,"Abdulaziz","Yousuf","Al-Homaid",201820,201710,"Active","Science & Engineering","Graduate","Master of Science"," ",null," ","Data Science and Engineering","Data Science and Engineering","aalhomaid@hbku.edu.qa","Qatar","974-55869646",null,null,29263404368]
[29363404074,210005441,"Alanood",null,"Alkuwari",201820,201710,"Active","Science & Engineering","Graduate","Master of Science"," ",null," ","Data Science and Engineering","Data Science and Engineering","alaalkuwari@hbku.edu.qa","Qatar","00974-55136677",null,null,29363404074]
[29463401652,210007942,"Noora",null,"Al-Mulla",201820,201810,"Active","Science & Engineering","Graduate","Master of Science"," ",null," ","Data Science and Engineering","Data Science and Engineering","noalmulla@hbku.edu.qa","Qatar","974-55276633",null,null,29463401652]
[29081801098,210005423,"Shaymaa","Fawzi","Khalifa",201820,201710,"Active","Science & Engineering","Graduate","Master of Science"," ",null," ","Data Science and Engineering","Data Science and Engineering","shkhalifa@hbku.edu.qa","Egypt","00974-55063740","00974-55063740",null,29081801098]
[29163402686,210005331,"Noora","Mohammed","Al-Maslamani",201820,201710,"Active","Science & Engineering","Graduate","Master of Science"," ",null," ","Data Science and Engineering","Data Science and Engineering","noalmaslamani@hbku.edu.qa","Qatar",{"$f":"974-55444592","v":-55443618},null,null,29163402686]
[29563404777,210006204,"Sarah",null,"Al Hussaini",201820,201810,"Active","Science & Engineering","Graduate","Master of Science"," ",null," ","Data Science and Engineering","Data Science and Engineering","salhussaini@hbku.edu.qa","Qatar","974-66168151",null,null,29563404777]
[27768200192,210005765,"sharoug",null,"alkhater",201820,201810,"Active","Science & Engineering","Graduate","Master of Science"," ",null," ","Data Science and Engineering","Data Science and Engineering","shalkhater@hbku.edu.qa","Qatar","974-55473733",null,null,27768200192]
[29299900393,210005071,"ALI","KHALIL","ELDOUS",201820,201710,"Active","Science & Engineering","Graduate","Master of Science"," ",null," ","Data Science and Engineering","Data Science and Engineering","aeldous@hbku.edu.qa","Palestinian Territory, Occupie","00974-66979903",null,null,29299900393]
[29235620532,210004883,"Ameema",null,"Zainab",201820,201710,"Active","Science & Engineering","Graduate","Master of Science"," ",null," ","Data Science and Engineering","Data Science and Engineering","azainab@hbku.edu.qa","India","91-8790765040",null,null,29235620532]
[29263402031,210008133,"Majed","Mohammed","Al-Nisf",201820,201810,"Active","Science & Engineering","Graduate","Master of Science"," ",null," ","Data Science and Engineering","Data Science and Engineering","maalnisf@hbku.edu.qa","Qatar","00974-66667454",null,null,29263402031]
[29063403595,210005329,"Afaf","Omar","AlSherawi",201820,201710,"Active","Science & Engineering","Graduate","Master of Science"," ",null," ","Data Science and Engineering","Data Science and Engineering","aalsherawi@hbku.edu.qa","Qatar","00974-66993991",null,null,29063403595]
[28673600922,210007239,"Naela",null,"Mahmoud",201820,201810,"Active","Science & Engineering","Graduate","Master of Science"," ",null," ","Genomic and Precision Medicine","MS Genomic &Precision Medicine","namahmoud@hbku.edu.qa","Sudan","00974-33843138",null,null,28673600922]
[28340000155,210008069,"Zenat","Mohmmd","Kanfosh",201820,201810,"Active","Science & Engineering","Graduate","Master of Science"," ",null," ","Genomic and Precision Medicine","MS Genomic &Precision Medicine","zkanfosh@hbku.edu.qa","Jordan","00974-55732014",null,null,28340000155]
[29540000180,210007522,"Nuha","Taysir","Swaidan",201820,201810,"Active","Science & Engineering","Graduate","Master of Science"," ",null," ","Genomic and Precision Medicine","MS Genomic &Precision Medicine","nswaidan@hbku.edu.qa","Jordan",{"$f":"974-33270477","v":-33269503},null,null,29540000180]
[29473600123,210007817,"Israa",null,"Elbashir",201820,201810,"Active","Science & Engineering","Graduate","Master of Science"," ",null," ","Genomic and Precision Medicine","MS Genomic &Precision Medicine","ielbashir@hbku.edu.qa","Sudan","974-55620389",null,null,29473600123]
[28336400369,210008024,"Dalal","Abdureda","Alsharshani",201820,201810,"Active","Science & Engineering","Graduate","Master of Science"," ",null," ","Genomic and Precision Medicine","MS Genomic &Precision Medicine","dalsharshani@hbku.edu.qa","Qatar","974-66233225",null,null,28336400369]
[29370600178,210008023,"Munira","Ali","Aden",201820,201810,"Active","Science & Engineering","Graduate","Master of Science"," ",null," ","Genomic and Precision Medicine","MS Genomic &Precision Medicine","maden@hbku.edu.qa","Somalia","974-33733138",null,null,29370600178]
[28508000349,210007494,"IDRIS","OMER","MOHAMMED",201820,201810,"Active","Science & Engineering","Graduate","Master of Science"," ",null," ","Genomic and Precision Medicine","MS Genomic &Precision Medicine","imohammed@hbku.edu.qa","Eritrea","6601-66014518","00974-66014518",null,28508000349]
[29540000179,210006692,"Areej",null,"Mesleh",201820,201810,"Active","Science & Engineering","Graduate","Master of Science"," ",null," ","Genomic and Precision Medicine","MS Genomic &Precision Medicine","amesleh@hbku.edu.qa","Jordan","974-33686833",null,null,29540000179]
[29263404698,210005169,"Ahmad","nasser","Alkuwari",201820,201710,"Active","Science & Engineering","Graduate","Master of Science"," ",null," ","Cyber Security","MSc Cybersecurity","ahalkuwari@hbku.edu.qa","Qatar","974-66995549",null,null,29263404698]
[28863401880,210005380,"Amna","Nasser","Almejali",201820,201710,"Active","Science & Engineering","Graduate","Master of Science"," ",null," ","Cyber Security","MSc Cybersecurity","aalmejali@hbku.edu.qa","Qatar","974-33331812",null,null,28863401880]
[28863402788,210007826,"SHAHEEN","SAAD","AL-KAABI",201820,201810,"Active","Science & Engineering","Graduate","Master of Science"," ",null," ","Cyber Security","MSc Cybersecurity","salkaabi@hbku.edu.qa","Qatar","974-5525",null,null,28863402788]
[null,210008015,"Essa",null,"AlKubaisi",201820,201810,"Active","Science & Engineering","Graduate","Master of Science"," ",null," ","Cyber Security","MSc Cybersecurity","ealkubaisi@hbku.edu.qa","Qatar","00974-55887118"]
[28863400595,210005417,"Mohammed","Eassa","Alshriem",201820,201710,"Active","Science & Engineering","Graduate","Master of Science"," ",null," ","Cyber Security","MSc Cybersecurity","malshriem@hbku.edu.qa","Qatar","974-70006060",null,null,28863400595]
[29363403811,210005795,"Saeed","Hamad","Al-Marri",201820,201810,"Active","Science & Engineering","Graduate","Master of Science"," ",null," ","Cyber Security","MSc Cybersecurity","saeedalmarri@hbku.edu.qa","Qatar","00974-55555099",null,null,29363403811]
[29363401576,210005410,"Maryam",null,"Al-Fehani",201820,201710,"Active","Science & Engineering","Graduate","Master of Science"," ",null," ","Cyber Security","MSc Cybersecurity","malfehani@hbku.edu.qa","Qatar","00974-77772332",null,null,29363401576]
[28881800414,210007516,"Omar","Adel","Ibrahim",201820,201810,"Active","Science & Engineering","Graduate","Master of Science"," ",null," ","Cyber Security","MSc Cybersecurity","oaibrahim@hbku.edu.qa","Egypt","974-66468441",null,null,28881800414]
[29263402873,210007875,"Maryam","Jamal","Al-Ammari",201820,201810,"Active","Science & Engineering","Graduate","Master of Science"," ",null," ","Cyber Security","MSc Cybersecurity","malammari@hbku.edu.qa","Qatar","00974-55926999",null,null,29263402873]
[28763402948,210005412,"Fatima","Ahmed","Saifaldeen",201820,201710,"Active","Science & Engineering","Graduate","Master of Science"," ",null," ","Cyber Security","MSc Cybersecurity","fsaifaldeen@hbku.edu.qa","Qatar","00974-55050977",null,null,28763402948]
[29435601181,210005297,"Priyanka","GopalSinh","Dodia",201820,201710,"Active","Science & Engineering","Graduate","Master of Science"," ",null," ","Cyber Security","MSc Cybersecurity","pdodia@hbku.edu.qa","India","974-44877690",null,null,29435601181]
[29163400888,210008016,"Abdulrahman","Misfer","Al-Hababi",201820,201810,"Active","Science & Engineering","Graduate","Master of Science"," ",null," ","Cyber Security","MSc Cybersecurity","aalhababi@hbku.edu.qa","Qatar","9474-33333423",null,null,29163400888]
[29458601621,210007878,"Syed Hassan",null,"Mehdi",201820,201810,"Active","Science & Engineering","Graduate","Master of Science"," ",null," ","Cyber Security","MSc Cybersecurity","smehdi@hbku.edu.qa","Pakistan","00974-66326036",null,null,29458601621]
[29363403828,210008035,"Yousef","Eassa","Al-Shriem",201820,201810,"Active","Science & Engineering","Graduate","Master of Science"," ",null," ","Cyber Security","MSc Cybersecurity","yalshriem@hbku.edu.qa","Qatar","974-66661233",null,null,29363403828]
[29463401465,210008123,"Adnan","Mahmoud","Fekri",201820,201810,"Active","Science & Engineering","Graduate","Master of Science"," ",null," ","Cyber Security","MSc Cybersecurity","afekri@hbku.edu.qa","Qatar","00974-66677882",null,null,29463401465]
[28363401526,210005393,"Eman","Mohammed","Radi",201820,201710,"Active","Science & Engineering","Graduate","Master of Science"," ",null," ","Cyber Security","MSc Cybersecurity","eradi@hbku.edu.qa","Qatar","00974-55811631",null,null,28363401526]
[28599900087,210005180,"Eman","Mohamed","Abouzohri",201820,201710,"Active","Science & Engineering","Graduate","Master of Science"," ",null," ","Cyber Security","MSc Cybersecurity","eabouzohri@hbku.edu.qa","Qatar","00974-33745131",null,null,28599900087]
[29358600740,210005257,"Talal",null,"Shoeb",201820,201710,"Active","Science & Engineering","Graduate","Master of Science"," ",null," ","Cyber Security","MSc Cybersecurity","tshoeb@hbku.edu.qa","Pakistan","974-77155015",null,null,29358600740]
[28801200147,210005293,"Nour Elhouda","Nouar","Tabet",201820,201710,"Active","Science & Engineering","Graduate","Master of Science"," ",null," ","Cyber Security","MSc Cybersecurity","notabet@hbku.edu.qa","Algeria","00974-55453504",null,null,28801200147]
[29063402028,210005171,"Ahmed","Khalil","Abdulla",201820,201710,"Active","Science & Engineering","Graduate","Master of Science"," ",null," ","Cyber Security","MSc Cybersecurity","ahabdulla@hbku.edu.qa","Qatar","974-55214321",null,null,29063402028]
[null,210008037,"Isra","Mohamed","Ali",201820,201810,"Active","Science & Engineering","Graduate","Master of Science"," ",null," ","Cyber Security","MSc Cybersecurity","Isali@hbku.edu.qa","Libyan Arab Jamahiriya","00974-33166187"]
[29299900234,210005578,"Hala",null,"Abou El Oula",201820,201810,"Active","Science & Engineering","Graduate","Master of Science"," ",null," ","Cyber Security","MSc Cybersecurity","heloula@hbku.edu.qa","Palestinian Territory, Occupie","00974-55943009",null,null,29299900234]
[29440000587,210005386,"Aseel","Ahmad","Ghazal",201820,201710,"Active","Science & Engineering","Graduate","Master of Science"," ",null," ","Cyber Security","MSc Cybersecurity","aghazal@hbku.edu.qa","Jordan","974-66629110",null,null,29440000587]
[28342200049,210004888,"Mahmoud","Mohamed","El Achi",201820,201710,"Active","Science & Engineering","Graduate","Master of Science"," ",null," ","Cyber Security","MSc Cybersecurity","maelachi@hbku.edu.qa","Lebanon","974-5",null,null,28342200049]
[29088600352,210006089,"MOHAMMED M. A.",null,"AL-SADI",201820,201810,"Active","Science & Engineering","Graduate","Master of Science"," ",null," ","Cyber Security","MSc Cybersecurity","mmalsadi@hbku.edu.qa","Yemen","974-55311562",null,null,29088600352]
[28863401330,210005070,"Saleh",null,"Almannai",201820,201710,"Active","Science & Engineering","Graduate","Master of Science"," ",null," ","Cyber Security","MSc Cybersecurity","salalmannai@hbku.edu.qa","Qatar","974-66166662",null,null,28863401330]
[28876000059,210007524,"Sura",null,"Takiddin",201820,201810,"Active","Science & Engineering","Graduate","Master of Science"," ",null," ","Cyber Security","MSc Cybersecurity","stakiddin@hbku.edu.qa","Syrian Arab Republic","00974-55334337",null,null,28876000059]
[28963404316,210005405,"Abdulaziz",null,"Al-Thani",201820,201710,"Active","Science & Engineering","Graduate","Master of Science"," ",null," ","Cyber Security","MSc Cybersecurity","abdulazizalthani@hbku.edu.qa","Qatar","00974-55883084",null,null,28963404316]
[29363400090,210005327,"Abdulaziz","Hamed","Al-Marwani",201820,201710,"Active","Science & Engineering","Graduate","Master of Science"," ",null," ","Cyber Security","MSc Cybersecurity","aalmarwani@hbku.edu.qa","Qatar","00974-55594428",null,null,29363400090]
[29435601629,210004495,"Bushra",null,"Memon",201820,201710,"Active","Science & Engineering","Graduate","Masters"," ",null," ","Biomedical Biological and Sc","MSc in Biol & Biomed scien","bmemon@hbku.edu.qa","India","974-77827080",null,null,29435601629]
[29063403815,210005286,"Ghada",null,"Mubarak",201820,201710,"Active","Science & Engineering","Graduate","Masters"," ",null," ","Biomedical Biological and Sc","MSc in Biol & Biomed scien","gmubarak@hbku.edu.qa","Qatar","5544-4649","974-55444619",null,29063403815]
[28955400010,210005072,"Heba","Rashid","Yasin",201820,201710,"Active","Science & Engineering","Graduate","Masters"," ",null," ","Biomedical Biological and Sc","MSc in Biol & Biomed scien","hyasin@hbku.edu.qa","New Zealand",{"$f":"974-55048317","v":-55047343},null,null,28955400010]
[29163403820,210005811,"Maha","Abdulla","AL-Thani",201820,201810,"Active","Science & Engineering","Graduate","Masters"," ",null," ","Biomedical Biological and Sc","MSc in Biol & Biomed scien","mahalthani@hbku.edu.qa","Qatar","00974-66433003",null,null,29163403820]
[28663402865,210005277,"Muna","Nasser","AL-Noubi",201820,201710,"Active","Science & Engineering","Graduate","Masters"," ",null," ","Biomedical Biological and Sc","MSc in Biol & Biomed scien","malnoubi@hbku.edu.qa","Qatar","00974-55658189",null,null,28663402865]
[29081800115,210004449,"Karim","Esmat","Shalaby",201820,201710,"Active","Science & Engineering","Graduate","Masters"," ",null," ","Biomedical Biological and Sc","MSc in Biol & Biomed scien","keshalaby@hbku.edu.qa","Egypt",-70791177,null,null,29081800115]
[29140000221,210003935,"Sara","Fuad Ahmed","Owaida",201820,201610,"Active","Science & Engineering","Graduate","Masters"," ",null," ","Biomedical Biological and Sc","MSc in Biol & Biomed scien","SarOwaida@hbku.edu.qa","Jordan",{"$nulls":3},29140000221]
[29063401821,210005266,"Amera","Khalil","Al Saadoun",201820,201710,"Active","Science & Engineering","Graduate","Masters"," ",null," ","Biomedical Biological and Sc","MSc in Biol & Biomed scien","aalsaadoun@hbku.edu.qa","Qatar","00974-55231412",null,null,29063401821]
[29476000237,210007511,"Rim","Abdul Kader","Mousa Bacha",201820,201810,"Active","Science & Engineering","Graduate","Masters"," ",null," ","Biomedical Biological and Sc","MSc in Biol & Biomed scien","rbacha@hbku.edu.qa","Syrian Arab Republic","00974-55052919",null,null,29476000237]
[28563404076,210004882,"Maryam","Saleh","Al Motawa",201820,201710,"Active","Science & Engineering","Graduate","Masters"," ",null," ","Biomedical Biological and Sc","MSc in Biol & Biomed scien","maalmotawa@hbku.edu.qa","Qatar",{"$f":"974-55590040","v":-55589066},null,null,28563404076]
[29573600364,210006493,"Asma",null,"Elashi",201820,201810,"Active","Science & Engineering","Graduate","Masters"," ",null," ","Biomedical Biological and Sc","MSc in Biol & Biomed scien","aelashi@hbku.edu.qa","Palestinian Territory, Occupie","00974-55600989",null,null,29573600364]
[29563404133,210007510,"Aisha","Abdulla H A","Al-Mulla",201820,201810,"Active","Science & Engineering","Graduate","Masters"," ",null," ","Biomedical Biological and Sc","MSc in Biol & Biomed scien","aaalmulla@hbku.edu.qa","Qatar","44-7479474990",null,null,29563404133]
[28335650815,210006883,"Gaurav",null,"Thareja",201820,201810,"Active","Science & Engineering","Graduate","Masters"," ",null," ","Biomedical Biological and Sc","MSc in Biol & Biomed scien","gthareja@hbku.edu.qa","India","974-70730139",null,null,28335650815]
[null,210004411,"Sara",null,"ALTamimi",201820,201710,"Active","Science & Engineering","Graduate","Masters"," ",null," ","Biomedical Biological and Sc","MSc in Biol & Biomed scien","saaltamimi@hbku.edu.qa","Qatar","00974-55898004"]
[28540000288,210004429,"Yasmeen","Mahmoud","Salameh",201820,201710,"Active","Science & Engineering","Graduate","Masters"," ",null," ","Biomedical Biological and Sc","MSc in Biol & Biomed scien","ysalameh@hbku.edu.qa","Jordan","974-55474377",null,null,28540000288]
[29550400325,210007214,"Sarah",null,"Namany",201820,201810,"Active","Science & Engineering","Graduate","Masters"," ",null," ","Sustainable Energy","MSc in Sustainable Energy","snamany@hbku.edu.qa","Morocco","212-616508812",null,null,29550400325]
[29535600084,210006683,"Sabah",null,"Mariyam",201820,201810,"Active","Science & Engineering","Graduate","Masters"," ",null," ","Sustainable Energy","MSc in Sustainable Energy","smariyam@hbku.edu.qa","India","00974-55638125",null,null,29535600084]
[29063402440,210003998,"Mohammed","Ibrahim","Al-Housani",201820,201610,"Active","Science & Engineering","Graduate","Masters"," ",null," ","Sustainable Energy","MSc in Sustainable Energy","malhousani@hbku.edu.qa","Qatar",-55393355,null,null,29063402440]
[null,210004514,"Meaad","Yousef","Al-Jassim",201820,201710,"Active","Science & Engineering","Graduate","Masters"," ",null," ","Sustainable Energy","MSc in Sustainable Energy","maljassim@hbku.edu.qa","Qatar","00974-55009976"]
[29040001275,210004675,"Hani",null,"Ababneh",201820,201710,"Active","Science & Engineering","Graduate","Masters"," ",null," ","Sustainable Energy","MSc in Sustainable Energy","hababneh@hbku.edu.qa","Jordan","974-33487478","00966-592255626",null,29040001275]
[29363402315,210005308,"Wadha",null,"Al-Thani",201820,201810,"Active","Science & Engineering","Graduate","Masters"," ",null," ","Sustainable Energy","MSc in Sustainable Energy","wadhaalthani@hbku.edu.qa","Qatar",{"$f":"974-55558707","v":-55557733},null,null,29363402315]
[29363403169,210005024,"Abdulwahab","Abdulla","Bukshaisha",201820,201710,"Active","Science & Engineering","Graduate","Masters"," ",null," ","Sustainable Energy","MSc in Sustainable Energy","abukshaisha@hbku.edu.qa","Qatar","00974-55103399",null,null,29363403169]
[29163402921,210004513,"Aisha","Hamad","Al-Rumaihi",201820,201710,"Active","Science & Engineering","Graduate","Masters"," ",null," ","Sustainable Energy","MSc in Sustainable Energy","aalrumaihi@hbku.edu.qa","Qatar","00974-33553366",null,null,29163402921]
[29063401228,210004215,"Sara","S.","AlMulla",201820,201610,"Active","Science & Engineering","Graduate","Masters"," ",null," ","Sustainable Energy","MSc in Sustainable Energy","salmulla@hbku.edu.qa","Qatar","974-55546226",null,null,29063401228]
[29079200549,210004803,"Ebubekir","Sıddık","Sahin",201820,201710,"Active","Science & Engineering","Graduate","Masters"," ",null," ","Sustainable Energy","MSc in Sustainable Energy","esahin@hbku.edu.qa","Turkey","0090-5066837271",null,null,29079200549]
[29263403066,210007429,"Saleh",null,"Al-Hor",201820,201810,"Active","Science & Engineering","Graduate","Masters"," ",null," ","Sustainable Energy","MSc in Sustainable Energy","salhor@hbku.edu.qa","Qatar","00974-55350504",null,null,29263403066]
[29163403535,210005322,"Maryam","Ali","Al-Hail",201820,201810,"Active","Science & Engineering","Graduate","Masters"," ",null," ","Sustainable Energy","MSc in Sustainable Energy","moaalhail@hbku.edu.qa","Qatar",{"$f":"974-55255335","v":-55254361},null,null,29163403535]
[29236800102,210004829,"Omar","Farook","Alrawi",201820,201710,"Active","Science & Engineering","Graduate","Masters"," ",null," ","Sustainable Energy","MSc in Sustainable Energy","omalrawi@hbku.edu.qa","Iraq","00974-55068925",null,null,29236800102]
[29350400478,210004971,"Safae",null,"Sali",201820,201710,"Active","Science & Engineering","Graduate","Masters"," ",null," ","Sustainable Energy","MSc in Sustainable Energy","ssali@hbku.edu.qa","Morocco","212-642981475",null,null,29350400478]
[null,210007430,"Shaikha",null,"Al-Nuaimi",201820,201810,"Active","Science & Engineering","Graduate","Masters"," ",null," ","Sustainable Energy","MSc in Sustainable Energy","Shaikaalnuaimi@hbku.edu.qa","Qatar","974-55784545"]
[29163400206,210005028,"Mohammed","Ibrahim A S","Al-Marzooqi",201820,201710,"Active","Science & Engineering","Graduate","Master of Science"," ",null," ","Sustainable Environment","MSc in Sustainable Environment","moalmarzooqi@hbku.edu.qa","Qatar","00974-66841414","00974-66841414",null,29163400206]
[29163400623,210007368,"Fatima","Essa","Al-Thawadi",201820,201810,"Active","Science & Engineering","Graduate","Master of Science"," ",null," ","Sustainable Environment","MSc in Sustainable Environment","falthawadi@hbku.edu.qa","Qatar","974-30069000",null,null,29163400623]
[28463402786,210003946,"Hanadi","Ghanim","AL- Thani",201820,201610,"Active","Science & Engineering","Graduate","Master of Science"," ",null," ","Sustainable Environment","MSc in Sustainable Environment","hanalthani@hbku.edu.qa",{"$nulls":4},28463402786]
[null,"Qatar","974-30053003"]
[28958603079,210003950,"Saad","Ghani Ullah","Hafiz",201820,201610,"Active","Science & Engineering","Graduate","Master of Science"," ",null," ","Sustainable Environment","MSc in Sustainable Environment","SaaHafiz@hbku.edu.qa","Pakistan",-31320066,null,null,28958603079]
[29058604486,210004672,"Usman","Bin","Shahid",201820,201710,"Active","Science & Engineering","Graduate","Master of Science"," ",null," ","Sustainable Environment","MSc in Sustainable Environment","ushahid@hbku.edu.qa","Pakistan","92-3314236457",-33552175,null,29058604486]
[29535600083,210007317,"Shifa",null,"Zuhara",201820,201810,"Active","Science & Engineering","Graduate","Master of Science"," ",null," ","Sustainable Environment","MSc in Sustainable Environment","szuhara@hbku.edu.qa","India",{"$f":"974-5565","v":-4591},null,null,29535600083]
[28204800054,210005476,"Haya","Saleh","Alyasi",201820,201710,"Active","Science & Engineering","Graduate","Master of Science"," ",null," ","Sustainable Environment","MSc in Sustainable Environment","haalyasi@hbku.edu.qa","Qatar","974-55888982",null,null,28204800054]
[28663400814,210004511,"Abdulrahman",null,"Al tamimi",201820,201710,"Active","Science & Engineering","Graduate","Master of Science"," ",null," ","Sustainable Environment","MSc in Sustainable Environment","abaltamimi@hbku.edu.qa","Qatar",{"$f":"974-77870870","v":-77869896},null,null,28663400814]
[28763402986,210007852,"Mohammed","Ali","Alghamdi",201820,201810,"Active","Science & Engineering","Graduate","Master of Science"," ",null," ","Sustainable Environment","MSc in Sustainable Environment","malghamdi@hbku.edu.qa","Qatar","00974-55516187",null,null,28763402986]
[28905006966,210004673,"Mehzabeen",null,"Mannan",201820,201710,"Active","Science & Engineering","Graduate","Master of Science"," ",null," ","Sustainable Environment","MSc in Sustainable Environment","mmannan@hbku.edu.qa","Bangladesh",{"$f":"974-50110340","v":-50109366},null,null,28905006966]
[28463401918,210004039,"Balqes","Mohsin","Saeed",201820,201610,"Active","Science & Engineering","Graduate","Master of Science"," ",null," ","Sustainable Environment","MSc in Sustainable Environment","BalSaeed@hbku.edu.qa","Qatar",null,"974-66662664",null,28463401918]
[28963400577,210005233,"Reem","Hassan","ALNaama",201820,201710,"Active","Science & Engineering","Graduate","Master of Science"," ",null," ","Sustainable Environment","MSc in Sustainable Environment","ralnaama@hbku.edu.qa","Qatar","00974-55325232",null,null,28963400577]
[28763401324,210004677,"Khalid","Saqr","Alhajri",201820,201710,"Active","Science & Engineering","Graduate","Master of Science"," ",null," ","Sustainable Environment","MSc in Sustainable Environment","ksalalhajri@hbku.edu.qa","Qatar","00974-55573370",null,null,28763401324]
[28681800007,210005166,"Hend","Kamal","Gedawy",201820,201710,"Active","Science & Engineering","Doctorate","PHD"," ",null," ","Computer Science & Engineering","PhD Computer Science & Eng","hgedawy@hbku.edu.qa","Egypt","00974-66506474",null,null,28681800007]
[28899900457,210004903,"Kholoud","Khalil","Aldous",201820,201710,"Active","Science & Engineering","Doctorate","PHD"," ",null," ","Computer Science & Engineering","PhD Computer Science & Eng","kaldous@hbku.edu.qa","Palestinian Territory, Occupie","00974-33637697",null,null,28899900457]
[null,210008268,"Simone",null,"Raponi",201820,201820,"Active","Science & Engineering","Doctorate","PHD"," ",null," ","Computer Science & Engineering","PhD Computer Science & Eng","sraponi@hbku.edu.qa","Italy","393-0897242"]
[26983400003,210005333,"Masoud","Udi","Mwinyi",201820,201710,"Active","Science & Engineering","Doctorate","PHD"," ",null," ","Computer Science & Engineering","PhD Computer Science & Eng","mmwinyi@hbku.edu.qa","Tanzania, United Republic of","974-55816968",null,null,26983400003]
[28958604524,210004909,"Atiq","Ur","Rehman",201820,201710,"Active","Science & Engineering","Doctorate","PHD"," ",null," ","Computer Science & Engineering","PhD Computer Science & Eng","arehman@hbku.edu.qa","Pakistan","092-3328927445",null,null,28958604524]
[27163400443,210005056,"Aref",null,"Al-Tamimi",201820,201710,"Active","Science & Engineering","Doctorate","PHD"," ",null," ","Computer Science & Engineering","PhD Computer Science & Eng","araltamimi@hbku.edu.qa","Qatar","974-33244258",null,null,27163400443]
[28299900124,210006162,"Mohnad",null,"Abunada",201820,201810,"Active","Science & Engineering","Doctorate","PHD"," ",null," ","Computer Science & Engineering","PhD Computer Science & Eng","moabunada@hbku.edu.qa","Palestinian Territory, Occupie","00974-55720702",null,null,28299900124]
[28638000114,210007311,"Maurantonio",null,"Caprolu",201820,201810,"Active","Science & Engineering","Doctorate","PHD"," ",null," ","Computer Science & Engineering","PhD Computer Science & Eng","mcaprolu@hbku.edu.qa","Italy",{"$f":"39-3338946893","v":-3338946854},null,null,28638000114]
[28163403217,210005603,"Ali",null,"Al-Rashid",201820,201720,"Active","Science & Engineering","Doctorate","PHD"," ",null," ","Computer Science & Engineering","PhD Computer Science & Eng","alialrashid@hbku.edu.qa","Qatar","00974-55483311",null,null,28163403217]
[28072400156,210008043,"Javier",null,"Hernandez Fernandez",201820,201810,"Active","Science & Engineering","Doctorate","PHD"," ",null," ","Computer Science & Engineering","PhD Computer Science & Eng","jfernandez@hbku.edu.qa","Spain",{"$f":"974-70396819","v":-70395845},null,null,28072400156]
[29040000572,210008044,"Lubna",null,"Eliyan",201820,201810,"Active","Science & Engineering","Doctorate","PHD"," ",null," ","Computer Science & Engineering","PhD Computer Science & Eng","leliyan@hbku.edu.qa","Jordan","00974-6099506",null,null,29040000572]
[28805030323,210006054,"Md Shafiqul",null,"Islam",201820,201810,"Active","Science & Engineering","Doctorate","PHD"," ",null," ","Computer Science & Engineering","PhD Computer Science & Eng","mislam@hbku.edu.qa","Bangladesh",{"$f":"961-81787756","v":-81786795},null,null,28805030323]
[28836400224,210005797,"Hamed",null,"Al-Shaibani",201820,201810,"Active","Science & Engineering","Doctorate","PHD"," ",null," ","Computer Science & Engineering","PhD Computer Science & Eng","halshaibani@hbku.edu.qa","Qatar","00974-66788665",null,null,28836400224]
[28915600961,210005991,"Qiang",null,"Xiao",201820,201810,"Active","Science & Engineering","Doctorate","PHD"," ",null," ","Computer Science & Engineering","PhD Computer Science & Eng","xqiang@hbku.edu.qa","China","86-18986268971",null,null,28915600961]
[29563403598,210007540,"Noor","Hussain","Al-Ansari",201820,201810,"Active","Science & Engineering","Doctorate","PHD"," ",null," ","Computer Science & Engineering","PhD Computer Science & Eng","nhalansari@hbku.edu.qa","Qatar","974-50022881",null,null,29563403598]
[null,210007562,"Muhammad",null,"Ijaz",201820,201810,"Active","Science & Engineering","Doctorate","PHD"," ",null," ","Computer Science & Engineering","PhD Computer Science & Eng","mijaz@hbku.edu.qa","Pakistan","-","-"]
[28099900202,210004908,"Aboubakr","Ahmed","Aqle",201820,201710,"Active","Science & Engineering","Doctorate","PHD"," ",null," ","Computer Science & Engineering","PhD Computer Science & Eng","aaqle@hbku.edu.qa","Palestinian Territory, Occupie","974-55246182",null,null,28099900202]
[28636800050,210005225,"AlHasan","Adnan","AlSammarraie",201820,201710,"Active","Science & Engineering","Doctorate","PHD"," ",null," ","Computer Science & Engineering","PhD Computer Science & Eng","aalsammarraie@hbku.edu.qa","Bahrain","974-55221367",null,null,28636800050]
[28863404386,210007950,"Haya","A","Al-Thani",201820,201810,"Active","Science & Engineering","Doctorate","PHD"," ",null," ","Computer Science & Engineering","PhD Computer Science & Eng","hayaalthani@hbku.edu.qa","Qatar","974-66770202",null,null,28863404386]
[27651200016,210005251,"Sana","Faiyz","Alfarsi",201820,201710,"Active","Science & Engineering","Doctorate","PHD"," ",null," ","Computer Science & Engineering","PhD Computer Science & Eng","saalfarsi@hbku.edu.qa","Qatar","00974-33886534",null,null,27651200016]
[29001200111,210005288,"Elmahdi Abderrahim",null,"Bentafat",201820,201710,"Active","Science & Engineering","Doctorate","PHD"," ",null," ","Computer Science & Engineering","PhD Computer Science & Eng","ebentafat@hbku.edu.qa","Algeria",{"$f":"974-50423243","v":-50422269},null,null,29001200111]
[29363405028,210007444,"Danya","Ahmed","Saifaldeen",201820,201810,"Active","Science & Engineering","Doctorate","PHD"," ",null," ","Computer Science & Engineering","PhD Computer Science & Eng","dsaifaldeen@hbku.edu.qa","Qatar","00974-77751771",null,null,29363405028]
[28256600748,210004884,"Bilikis","Oluwatoyin","Banire",201820,201710,"Active","Science & Engineering","Doctorate","PHD"," ",null," ","Computer Science & Engineering","PhD Computer Science & Eng","bbanire@hbku.edu.qa","Nigeria","971-528424478",-50211789,null,28256600748]
[27699900029,210005055,"Sami",null,"Elzeiny",201820,201710,"Active","Science & Engineering","Doctorate","PHD"," ",null," ","Computer Science & Engineering","PhD Computer Science & Eng","selzeiny@hbku.edu.qa","Palestinian Territory, Occupie","00974-55801084",null,null,27699900029]
[29163402572,210005062,"Jaber","Sadiqe","Al-khori",201820,201710,"Active","Science & Engineering","Doctorate","PHD"," ",null," ","Computer Science & Engineering","PhD Computer Science & Eng","jalkhori@hbku.edu.qa","Qatar","974-55591166",null,null,29163402572]
[28763400971,210007673,"Ali","Fahad","Al-Qahtani",201820,201810,"Active","Science & Engineering","Doctorate","PHD"," ",null," ","Computer Science & Engineering","PhD Computer Science & Eng","afalqahtani@hbku.edu.qa","Qatar",{"$f":"974-66680273","v":-66679299},null,null,28763400971]
[29463402084,210005294,"Alkhzami","Salman A H","Al-Harami",201820,201710,"Active","Science & Engineering","Doctorate","PHD"," ",null," ","Computer Science & Engineering","PhD Computer Science & Eng","aalharami@hbku.edu.qa","Qatar","00974-66002722",null,null,29463402084]
[28963404379,210003924,"Hanadi","Mohammed","Al-Mohsin",201820,201610,"Active","Science & Engineering","Doctorate","PHD"," ",null," ","Computer Science & Engineering","PhD Computer Science & Eng","HanAlMohsin@hbku.edu.qa","Qatar",null,-33232289,null,28963404379]
[28349900003,210005898,"Edin",null,"Salkovic",201820,201810,"Active","Science & Engineering","Doctorate","PHD"," ",null," ","Computer Science & Engineering","PhD Computer Science & Eng","esalkovic@hbku.edu.qa","Yugoslavia","382-69823408",null,null,28349900003]
[28963400636,210005289,"Khalid","Mohammed","Al-Kubaisi",201820,201710,"Active","Science & Engineering","Doctorate","PHD"," ",null," ","Computer Science & Engineering","PhD Computer Science & Eng","kmalkubaisi@hbku.edu.qa","Qatar","974-77766640",null,null,28963400636]
[28143400039,210005228,"Abdurrahman",null,"Elbasir",201820,201710,"Active","Science & Engineering","Doctorate","PHD"," ",null," ","Computer Science & Engineering","PhD Computer Science & Eng","aelbasir@hbku.edu.qa","Liberia",-50246199,"218-924299007",null,28143400039]
[28399900515,210005378,"Ghadeer","Said","AbuOda",201820,201710,"Active","Science & Engineering","Doctorate","PHD"," ",null," ","Computer Science & Engineering","PhD Computer Science & Eng","gabuoda@hbku.edu.qa","Palestinian Territory, Occupie","974-50592904","970-599628633",null,28399900515]
[null,210005390,"Kamela","Ali","Al-Mannai",201820,201710,"Active","Science & Engineering","Doctorate","PHD"," ",null," ","Computer Science & Engineering","PhD Computer Science & Eng","kaalmannai@hbku.edu.qa","Qatar","00974-66796688"]
[29115600557,210005563,"Tsz Ngai",null,"Lin",201820,201720,"Active","Science & Engineering","Doctorate","PHD"," ",null," ","Computer Science & Engineering","PhD Computer Science & Eng","tngai@hbku.edu.qa","China","852-90807103",null,null,29115600557]
[28963403594,210005379,"Hind","Ali","Almerekhi",201820,201710,"Active","Science & Engineering","Doctorate","PHD"," ",null," ","Computer Science & Engineering","PhD Computer Science & Eng","hialmerekhi@hbku.edu.qa","Qatar","974-66586510",null,null,28963403594]
[27635644330,210008026,"Sarmadia",null,"Ashraf",201820,201810,"Active","Science & Engineering","Doctorate","PHD"," ",null," ","Genomic and Precision Medicine","PhD Genomic&Precision Medicine","saashraf@hbku.edu.qa","India","91-7006857202",null,null,27635644330]
[29073601478,210008027,"Amal","Elfatih","abdelmageed",201820,201810,"Active","Science & Engineering","Doctorate","PHD"," ",null," ","Genomic and Precision Medicine","PhD Genomic&Precision Medicine","aabdelmageed@hbku.edu.qa","Sudan","974-50595802",null,null,29073601478]
[28776002527,210007507,"Iman",null,"Hawari",201820,201810,"Active","Science & Engineering","Doctorate","PHD"," ",null," ","Genomic and Precision Medicine","PhD Genomic&Precision Medicine","ihawari@hbku.edu.qa","Syrian Arab Republic","00974-33013688",null,null,28776002527]
[null,210008183,"Kholoud",null,"Bastaki",201820,201810,"Active","Science & Engineering","Doctorate","PHD"," ",null," ","Genomic and Precision Medicine","PhD Genomic&Precision Medicine","khbastaki@hbku.edu.qa","Qatar","00974-66000781"]
[28781809491,210007495,"Eman","Wehedy Elsayed","Abdelsalam",201820,201810,"Active","Science & Engineering","Doctorate","PHD"," ",null," ","Genomic and Precision Medicine","PhD Genomic&Precision Medicine","eabdelsalam@hbku.edu.qa","Egypt","0094-30369272",null,null,28781809491]
[29042200042,210008163,"Maha","Hussin","Hassan",201820,201810,"Active","Science & Engineering","Doctorate","PHD"," ",null," ","Genomic and Precision Medicine","PhD Genomic&Precision Medicine","mhelakoum@hbku.edu.qa","Lebanon","974-66186742",null,null,29042200042]
[29540400002,210004499,"Umm-Kulthum","Ismail","Umlai",201820,201810,"Active","Science & Engineering","Doctorate","PHD"," ",null," ","Genomic and Precision Medicine","PhD Genomic&Precision Medicine","uumlai@hbku.edu.qa","Kenya",{"$f":"974-55197741","v":-55196767},null,null,29540400002]
[28673602007,210008063,"Ghada","Yousif Mohammed","Yousif",201820,201810,"Active","Science & Engineering","Doctorate","PHD"," ",null," ","Genomic and Precision Medicine","PhD Genomic&Precision Medicine","gyousif@hbku.edu.qa","Sudan","00249-900988031",null,null,28673602007]
[28640000341,210006152,"Yasmin","Walid","Abu Aqel",201820,201810,"Active","Science & Engineering","Doctorate","PHD"," ",null," ","Genomic and Precision Medicine","PhD Genomic&Precision Medicine","yaqel@hbku.edu.qa","Jordan","00974-55386405",null,null,28640000341]
[28788600425,210007497,"Wafa","Abdulsalam Abdulrazzaq","al-Ameri",201820,201810,"Active","Science & Engineering","Doctorate","PHD"," ",null," ","Genomic and Precision Medicine","PhD Genomic&Precision Medicine","walameri@hbku.edu.qa","Yemen",-33879779,null,null,28788600425]
[null,210008078,"KRIPA","SUBHADRA","KEYAN",201820,201810,"Active","Science & Engineering","Doctorate","PHD"," ",null," ","Genomic and Precision Medicine","PhD Genomic&Precision Medicine","kkeyan@hbku.edu.qa","India",{"$f":"91-7034432970","v":-7034432879}]
[29140000269,210007651,"Reem","Subhi Mohammad","Al Disi",201820,201810,"Active","Science & Engineering","Doctorate","PHD"," ",null," ","Genomic and Precision Medicine","PhD Genomic&Precision Medicine","raldisi@hbku.edu.qa","Jordan",{"$f":"974-55836928","v":-55835954},null,null,29140000269]
[28735600078,210008076,"Zeenath",null,"Safira",201820,201810,"Active","Science & Engineering","Doctorate","PHD"," ",null," ","Genomic and Precision Medicine","PhD Genomic&Precision Medicine","zsafira@hbku.edu.qa","India","974-44319339",null,null,28735600078]
[28476001451,210004371,"Abdulghani",null,"Khilan",201820,201710,"Active","Science & Engineering","Doctorate","PHD"," ",null," ","Biomedical Biological and Sc","PhD in Biomed & Biol sciences","akhilan@hbku.edu.qa","Syrian Arab Republic","00966-509750963",null,null,28476001451]
[29163400793,210003918,"Aisha","MOHD","Al-Qahtani",201820,201810,"Active","Science & Engineering","Doctorate","PHD"," ",null," ","Biomedical Biological and Sc","PhD in Biomed & Biol sciences","AisAlQahtani@hbku.edu.qa","Qatar","974-66735554",null,null,29163400793]
[28350400006,210008421,"Khaoula",null,"Errafii",201820,201820,"Active","Science & Engineering","Doctorate","PHD"," ",null," ","Biomedical Biological and Sc","PhD in Biomed & Biol sciences","kherrafii@hbku.edu.qa","Morocco",{"$f":"974-33840364","v":-33839390},null,null,28350400006]
[29299900437,210004046,"Sanaa","Ali","Sharari",201820,201810,"Active","Science & Engineering","Doctorate","PHD"," ",null," ","Biomedical Biological and Sc","PhD in Biomed & Biol sciences","SanSharari@hbku.edu.qa","Palestinian Territory, Occupie","974-74746003",null,null,29299900437]
[28463402655,210003919,"Noor","Ali","Al-Maslamani",201820,201610,"Active","Science & Engineering","Doctorate","PHD"," ",null," ","Biomedical Biological and Sc","PhD in Biomed & Biol sciences","NooAlMaslamani@hbku.edu.qa","Qatar",{"$nulls":3},28463402655]
[28382600193,210003922,"Ahmad",null,"Najjar",201820,201610,"Active","Science & Engineering","Doctorate","PHD"," ",null," ","Biomedical Biological and Sc","PhD in Biomed & Biol sciences","AhmNajjar@hbku.edu.qa","United Kingdom",null,"00974-66070669",null,28382600193]
[27512400214,210003934,"Sahar","Isa","Daas",201820,201610,"Active","Science & Engineering","Doctorate","PHD"," ",null," ","Biomedical Biological and Sc","PhD in Biomed & Biol sciences","SahDaas@hbku.edu.qa","Canada",{"$nulls":3},27512400214]
[28982600266,210007237,"Hibah",null,"Shaath",201820,201810,"Active","Science & Engineering","Doctorate","PHD"," ",null," ","Biomedical Biological and Sc","PhD in Biomed & Biol sciences","hishaath@hbku.edu.qa","England","00974-33646723",null,null,28982600266]
[28363403040,210003992,"Ghaneya","Mesaad","Al-Khadairi",201820,201810,"Active","Science & Engineering","Doctorate","PHD"," ",null," ","Biomedical Biological and Sc","PhD in Biomed & Biol sciences","GhaAlKhadairi@hbku.edu.qa","Qatar","00974-70781929",null,null,28363403040]
[29440000251,210003920,"Mounira","Walid Jamil","Fayyad",201820,201810,"Active","Science & Engineering","Doctorate","PHD"," ",null," ","Biomedical Biological and Sc","PhD in Biomed & Biol sciences","MunFayyad@hbku.edu.qa","Jordan","974-3378",-33782129,null,29440000251]
[28935629152,210004492,"Drishya","Maria","George",201820,201710,"Active","Science & Engineering","Doctorate","PHD"," ",null," ","Biomedical Biological and Sc","PhD in Biomed & Biol sciences","dgeorge@hbku.edu.qa","India","00974-66480615",null,null,28935629152]
[28670600001,210003927,"Asha","Abdelsalam Ali","Elmi",201820,201610,"Active","Science & Engineering","Doctorate","PHD"," ",null," ","Biomedical Biological and Sc","PhD in Biomed & Biol sciences","AshElmi@hbku.edu.qa","Somalia",{"$nulls":3},28670600001]
[28540000086,210004571,"Arwa","A.H.","Aldaalis",201820,201710,"Active","Science & Engineering","Doctorate","PHD"," ",null," ","Biomedical Biological and Sc","PhD in Biomed & Biol sciences","araldaalis@hbku.edu.qa","Palestinian Territory, Occupie","974-33194533",null,null,28540000086]
[28163401858,210003929,"Bakhita","Rashid","Meqbel",201820,201610,"Active","Science & Engineering","Doctorate","PHD"," ",null," ","Biomedical Biological and Sc","PhD in Biomed & Biol sciences","BakMeqbel@hbku.edu.qa","Qatar",null,-55906600,null,28163401858]
[28426200001,210004358,"Idil",null,"Ahmed",201820,201710,"Active","Science & Engineering","Doctorate","PHD"," ",null," ","Biomedical Biological and Sc","PhD in Biomed & Biol sciences","iahmed@hbku.edu.qa","Djibouti","00974-33968898",null,null,28426200001]
[28636400054,210004614,"Ayeshah","Yaghoub","Madani",201820,201710,"Active","Science & Engineering","Doctorate","PHD"," ",null," ","Biomedical Biological and Sc","PhD in Biomed & Biol sciences","amadani@hbku.edu.qa","Iran (Islamic Republic Of)",{"$f":"974-55425954","v":-55424980},null,null,28636400054]
[28235654617,210005791,"TAHIR",null,"ABDULREHMAN",201820,201720,"Active","Science & Engineering","Doctorate","PHD"," ",null," ","Biomedical Biological and Sc","PhD in Biomed & Biol sciences","tabdulrahman@hbku.edu.qa","India","00974-66419568",null,null,28235654617]
[29040000311,210005086,"Ayat","Samir Mah'd","Hammad",201820,201710,"Active","Science & Engineering","Doctorate","PHD"," ",null," ","Biomedical Biological and Sc","PhD in Biomed & Biol sciences","ahammad@hbku.edu.qa","Jordan","974-55151965",null,null,29040000311]
[28499900173,210003921,"Eman","Khaleel Rashied","Aldous",201820,201810,"Active","Science & Engineering","Doctorate","PHD"," ",null," ","Biomedical Biological and Sc","PhD in Biomed & Biol sciences","EymAlDous@hbku.edu.qa","Palestinian Territory, Occupie","00974-66434341",null,null,28499900173]
[28663401459,210004835,"Kholoud","Nedham","Alshafai",201820,201710,"Active","Science & Engineering","Doctorate","PHD"," ",null," ","Biomedical Biological and Sc","PhD in Biomed & Biol sciences","kalshafai@hbku.edu.qa","Qatar","00974-55843369",null,null,28663401459]
[29435600335,210007333,"Safa",null,"Salim",201820,201810,"Active","Science & Engineering","Doctorate","PHD"," ",null," ","Biomedical Biological and Sc","PhD in Biomed & Biol sciences","sasalim@hbku.edu.qa","India","974-74478927",null,null,29435600335]
[28376002164,210003933,"Yaser","Ammar","AlSarraj",201820,201810,"Active","Science & Engineering","Doctorate","PHD"," ",null," ","Biomedical Biological and Sc","PhD in Biomed & Biol sciences","YasAlSarraj@hbku.edu.qa","Syrian Arab Republic","974-66898945",-66898945,null,28376002164]
[28915600962,210007868,"Xuan",null,"Li",201820,201810,"Withdrawn","Science & Engineering","Doctorate","PHD"," ",null," ","Sustainable Energy","PhD in Sustainable Energy","xli@hbku.edu.qa","China","971-529495021",null,null,28915600962]
[28363400958,210004796,"Amera","Rashid","Al Mannai",201820,201810,"Active","Science & Engineering","Doctorate","PHD"," ",null," ","Sustainable Energy","PhD in Sustainable Energy","ameraalmannai@hbku.edu.qa","Qatar",-66632120,null,null,28363400958]
[28858604890,210003976,"Ahmer","Ali Bozdar","Baloch",201820,201610,"Active","Science & Engineering","Doctorate","PHD"," ",null," ","Sustainable Energy","PhD in Sustainable Energy","AhmBaloch@hbku.edu.qa","Pakistan",-33157462,"974-33157462",null,28858604890]
[28758604809,210003980,"Shoukat","Alim","Khan",201820,201610,"Active","Science & Engineering","Doctorate","PHD"," ",null," ","Sustainable Energy","PhD in Sustainable Energy","ShoKhan@hbku.edu.qa","Pakistan",-33904684,null,null,28758604809]
[28958604525,210004773,"Athar",null,"Kamal",201820,201710,"Active","Science & Engineering","Doctorate","PHD"," ",null," ","Sustainable Energy","PhD in Sustainable Energy","atkamal@hbku.edu.qa","Pakistan",-33686376,"92-0343",null,28958604525]
[29140000549,210004790,"Sarah","Iyad Mohammad","Yousef",201820,201710,"Active","Science & Engineering","Doctorate","PHD"," ",null," ","Sustainable Energy","PhD in Sustainable Energy","sahmed@hbku.edu.qa","Jordan","00974-66633557",null,null,29140000549]
[28399900199,210006367,"Ahmad","Majed","Alsarraj",201820,201810,"Active","Science & Engineering","Doctorate","PHD"," ",null," ","Sustainable Energy","PhD in Sustainable Energy","aalsarraj@hbku.edu.qa","Palestinian Territory, Occupie","974-55207818",null,null,28399900199]
[28563400424,210004503,"Abdulrahman","Hassan","Al-Kaabi",201820,201710,"Active","Science & Engineering","Doctorate","PHD"," ",null," ","Sustainable Energy","PhD in Sustainable Energy","aalkaabi@hbku.edu.qa","Qatar",{"$f":"974-55022788","v":-55021814},null,null,28563400424]
[27884000360,210003957,"Dana",null,"Abdeen",201820,201610,"Active","Science & Engineering","Doctorate","PHD"," ",null," ","Sustainable Energy","PhD in Sustainable Energy","DanAbdeen@hbku.edu.qa","United States",{"$nulls":3},27884000360]
[null,210007571,"Muhammad",null,"Luqman",201820,201820,"Active","Science & Engineering","Doctorate","PHD"," ",null," ","Sustainable Energy","PhD in Sustainable Energy","mluqman@hbku.edu.qa","Pakistan","0092-3219818387"]
[28363400535,210003964,"Ali","Mohammed","Al-sharshani",201820,201610,"Active","Science & Engineering","Doctorate","PHD"," ",null," ","Sustainable Energy","PhD in Sustainable Energy","AliAlsharshani@hbku.edu.qa","Qatar",{"$nulls":3},28363400535]
[28363402387,210002996,"Manal","Mohamed","Al Salama",201820,201710,"Active","Science & Engineering","Doctorate","PHD"," ",null," ","Sustainable Energy","PhD in Sustainable Energy","mmalsalama@hbku.edu.qa","Qatar","00974-33195629",-50319955,null,28363402387]
[28963402835,210000029,"Muneera","Saad","Al-Qahtani",201820,201610,"Active","Science & Engineering","Doctorate","PHD"," ",null," ","Sustainable Energy","PhD in Sustainable Energy","munalqahtani@hbku.edu.qa","Qatar","00974-55884594",null,null,28963402835]
[28935629006,210003987,"Tejvir",null,"Singh",201820,201610,"Active","Science & Engineering","Doctorate","PHD"," ",null," ","Sustainable Energy","PhD in Sustainable Energy","TejSingh@hbku.edu.qa","India",null,"-",null,28935629006]
[28958604620,210004792,"Furqan",null,"Tahir",201820,201710,"Active","Science & Engineering","Doctorate","PHD"," ",null," ","Sustainable Energy","PhD in Sustainable Energy","ftahir@hbku.edu.qa","Pakistan","0092-3333099619",-30074879,null,28958604620]
[27363400927,210000024,"Hassan","Mohd","Al-Naimi",201820,201610,"Active","Science & Engineering","Doctorate","PHD"," ",null," ","Sustainable Energy","PhD in Sustainable Energy","HasAlNaimi@hbku.edu.qa","Qatar","00974-55084846",null,null,27363400927]
[28350400534,210007212,"Yahya",null,"Zakaria",201820,201810,"Active","Science & Engineering","Doctorate","PHD"," ",null," ","Sustainable Energy","PhD in Sustainable Energy","yazakaria@hbku.edu.qa","Morocco","974-44540735",null,null,28350400534]
[28779200915,210003979,"Nurettin",null,"Sezer",201820,201610,"Active","Science & Engineering","Doctorate","PHD"," ",null," ","Sustainable Energy","PhD in Sustainable Energy","NurSEZER@hbku.edu.qa","Turkey",null,"00974-50577108",null,28779200915]
[29073601675,210003978,"Mohamed","Atta Elmanan","Bakhit Alhaj",201820,201610,"Active","Science & Engineering","Doctorate","PHD"," ",null," ","Sustainable Energy","PhD in Sustainable Energy","MohBakhitAlhaj@hbku.edu.qa","Sudan",null,-50563476,null,29073601675]
[28799900321,210007569,"Enas",null,"Fares",201820,201810,"Active","Science & Engineering","Doctorate","PHD"," ",null," ","Sustainable Energy","PhD in Sustainable Energy","efares@hbku.edu.qa","Palestinian Territory, Occupie","00974-55094790",null,null,28799900321]
[27963400233,210000017,"Ali","Attiq","Al-Yaeeshi",201820,201610,"Active","Science & Engineering","Doctorate","PHD"," ",null," ","Sustainable Energy","PhD in Sustainable Energy","AliAlYaeeshi@hbku.edu.qa","Qatar","974-55879070",null,null,27963400233]
[27363400600,210006240,"Houd",null,"Al-Obaidli",201820,201810,"Active","Science & Engineering","Doctorate","PHD"," ",null," ","Sustainable Energy","PhD in Sustainable Energy","halobaidli@hbku.edu.qa","Qatar","974-55546630",null,null,27363400600]
[28776000034,210005020,"Ahmed",null,"AlNouss",201820,201710,"Active","Science & Engineering","Doctorate","PHD"," ",null," ","Sustainable Energy","PhD in Sustainable Energy","aalnouss@hbku.edu.qa","Syrian Arab Republic","00974-55533690",null,null,28776000034]
[28556600717,210003956,"Ahmed",null,"Sodiq",201820,201610,"Active","Science & Engineering","Doctorate","PHD"," ",null," ","Sustainable Energy","PhD in Sustainable Energy","AhmSodiq@hbku.edu.qa","Nigeria",null,-33429507,null,28556600717]
[28858604676,210003963,"Shahzada","Pamir","Aly",201820,201610,"Active","Science & Engineering","Doctorate","PHD"," ",null," ","Sustainable Energy","PhD in Sustainable Energy","ShaAly@hbku.edu.qa","Pakistan","-","-",null,28858604676]
[28558603712,210003960,"Waqas",null,"Nawaz",201820,201610,"Active","Science & Engineering","Doctorate","PHD"," ",null," ","Sustainable Energy","PhD in Sustainable Energy","WaqNawaz@hbku.edu.qa","Pakistan",-55740601,null,null,28558603712]
[28863400637,210004506,"Sara","Yousuf","Al-Haidous",201820,201710,"Active","Science & Engineering","Doctorate","PHD"," ",null," ","Sustainable Energy","PhD in Sustainable Energy","salhaidous@hbku.edu.qa","Qatar","00974-55091640",null,null,28863400637]
[27463400432,210004794,"Khalid","Mohammed","Al-Khori",201820,201710,"Active","Science & Engineering","Doctorate","PHD"," ",null," ","Sustainable Energy","PhD in Sustainable Energy","kalkhori@hbku.edu.qa","Qatar","974-55557440",null,null,27463400432]
[29015600802,210007938,"Qiangshun",null,"Guan",201820,201810,"Withdrawn","Science & Engineering","Doctorate","PHD"," ",null," ","Sustainable Energy","PhD in Sustainable Energy","qguan@hbku.edu.qa","China",{"$f":"971-529493266","v":-529492295},null,null,29015600802]
[28879200783,210003962,"Irfan",null,"Batur",201820,201610,"Active","Science & Engineering","Doctorate","PHD"," ",null," ","Sustainable Energy","PhD in Sustainable Energy","irfanbatur@hbku.edu.qa","Turkey",null,-30116829,null,28879200783]
[28963404362,210000221,"Sara","Ahmad Jassim","Al-Hail",201820,201710,"Active","Science & Engineering","Doctorate","PHD"," ",null," ","Sustainable Energy","PhD in Sustainable Energy","salhail@hbku.edu.qa","Qatar","00974-66448484",null,null,28963404362]
[29058603829,210003977,"Faisal","Ahmed","Mumtaz",201820,201610,"Active","Science & Engineering","Doctorate","PHD"," ",null," ","Sustainable Energy","PhD in Sustainable Energy","FaiMumtaz@hbku.edu.qa","Pakistan","00974-33102905",-33102905,null,29058603829]
[28999900252,210006929,"Suaa",null,"Abumaali",201820,201810,"Leave Of Absence","Science & Engineering","Doctorate","PHD"," ",null," ","Sustainable Energy","PhD in Sustainable Energy","dabumaali@hbku.edu.qa","Palestinian Territory, Occupie",{"$f":"974-33780708","v":-33779734},null,null,28999900252]
[28379201466,210003961,"Ibrahim",null,"Ari",201820,201610,"Active","Science & Engineering","Doctorate","PHD"," ",null," ","Sustainable Energy","PhD in Sustainable Energy","ibrahimari@hbku.edu.qa","Turkey",null,-31246063,null,28379201466]
[28263402355,210008034,"Mona","Matar","Alkuwari",201820,201810,"Active","Science & Engineering","Doctorate","PHD"," ",null," ","Sustainable Environment","PhD in Sustainable Environment","monalkuwari@hbku.edu.qa","Qatar","00974-55861931",null,null,28263402355]
[28899900169,210004759,"Rand","Essam","ElShorafa",201820,201710,"Active","Science & Engineering","Doctorate","PHD"," ",null," ","Sustainable Environment","PhD in Sustainable Environment","relshorafa@hbku.edu.qa","Palestinian Territory, Occupie","00974-66849568",null,null,28899900169]
[29135605490,210003985,"Raghavendran",null,"Sivasubramanian",201820,201610,"Active","Science & Engineering","Doctorate","PHD"," ",null," ","Sustainable Environment","PhD in Sustainable Environment","RagSivasubramanian@hbku.edu.qa","India","91-2253088","966-599670067",null,29135605490]
[29014400033,210000200,"Dillan",null,"Roshan",201820,201810,"Active","Science & Engineering","Doctorate","PHD"," ",null," ","Sustainable Environment","PhD in Sustainable Environment","droshan@hbku.edu.qa","Sri Lanka","974-66066824",null,null,29014400033]
[29063403052,210004389,"Abdulrahman",null,"Abu-Nada",201820,201710,"Active","Science & Engineering","Doctorate","PHD"," ",null," ","Sustainable Environment","PhD in Sustainable Environment","aabunada@hbku.edu.qa","Qatar",{"$f":"974-77797797","v":-77796823},null,null,29063403052]
[null,210007734,"Ismail","Walid Khalil","Almanassra",201820,201810,"Active","Science & Engineering","Doctorate","PHD"," ",null," ","Sustainable Environment","PhD in Sustainable Environment","ialmanassra@hbku.edu.qa","Jordan",{"$f":"972-598","v":374}]
[29008000470,210006020,"Haile","Tecle","Woldesellasse",201820,201810,"Active","Science & Engineering","Doctorate","PHD"," ",null," ","Sustainable Environment","PhD in Sustainable Environment","hwoldesellasse@hbku.edu.qa","Eritrea","00971-522440178",null,null,29008000470]
[28736400101,210003974,"Hajar","Ali Hussain","Farzaneh",201820,201610,"Active","Science & Engineering","Doctorate","PHD"," ",null," ","Sustainable Environment","PhD in Sustainable Environment","HajFarzaneh@hbku.edu.qa","Iran (Islamic Republic Of)",{"$nulls":3},28736400101]
[28936800026,210004793,"Ayman",null,"Raouf",201820,201710,"Active","Science & Engineering","Doctorate","PHD"," ",null," ","Sustainable Environment","PhD in Sustainable Environment","araouf@hbku.edu.qa","New Zealand",{"$f":"974-70023479","v":-70022505},null,null,28936800026]
["N 004714925",210003984,"Dema","Abdulrahman","Almasri",201820,201610,"Active","Science & Engineering","Doctorate","PHD"," ",null," ","Sustainable Environment","PhD in Sustainable Environment","DemAlmasri@hbku.edu.qa","Syrian Arab Republic",{"$nulls":3},"N 004714925"]
[297107,210003994,"Yehia","Mohammad Ali","Manawi",201820,201610,"Active","Science & Engineering","Doctorate","PHD"," ",null," ","Sustainable Environment","PhD in Sustainable Environment","YehManawi@hbku.edu.qa","Palestinian Territory, Occupie",{"$nulls":3},297107]
[28463403155,210004037,"Reem","Saleh","Al-Mansoori",201820,201610,"Active","Science & Engineering","Doctorate","PHD"," ",null," ","Sustainable Environment","PhD in Sustainable Environment","ReeAlMansoori@hbku.edu.qa","Qatar",{"$nulls":3},28463403155]
[27484000461,210004975,"Nagla","Kamal","Mohamed",201820,201710,"Active","Science & Engineering","Doctorate","PHD"," ",null," ","Sustainable Environment","PhD in Sustainable Environment","nagmohamed@hbku.edu.qa","United States","00974-77220026",null,null,27484000461]
[28663401285,210005237,"Khalid","Saleh","Al-Menhali",201820,201710,"Active","Science & Engineering","Doctorate","PHD"," ",null," ","Sustainable Environment","PhD in Sustainable Environment","khalmenhali@hbku.edu.qa","Qatar",{"$f":"974-55810827","v":-55809853},null,null,28663401285]
[null,210004390,"Zakarya",null,"Othman",201820,201710,"Active","Science & Engineering","Doctorate","PHD"," ",null," ","Sustainable Environment","PhD in Sustainable Environment","zothman@hbku.edu.qa","Iraq","00974-66480686"]
[28640000201,210006031,"Malek",null,"Mohammad",201820,201810,"Active","Science & Engineering","Doctorate","PHD"," ",null," ","Sustainable Environment","PhD in Sustainable Environment","mmohammad@hbku.edu.qa","Jordan",{"$f":"974-66966141","v":-66965167},null,null,28640000201]
[28973600083,210007211,"Samar",null,"Elkhalifa",201820,201810,"Active","Science & Engineering","Doctorate","PHD"," ",null," ","Sustainable Environment","PhD in Sustainable Environment","selkhalifa@hbku.edu.qa","Sudan","00974-55144539",null,null,28973600083]
[29063403226,210006252,"Naela","Ahmad","Al-Thani",201820,201810,"Active","Science & Engineering","Doctorate","PHD"," ",null," ","Sustainable Environment","PhD in Sustainable Environment","nayalthani@hbku.edu.qa","Qatar",{"$f":"974-77333373","v":-77332399},null,null,29063403226]
[28963404160,210003975,"Btool","Hashim","Mohamed",201820,201610,"Active","Science & Engineering","Doctorate","PHD"," ",null," ","Sustainable Environment","PhD in Sustainable Environment","BtoMohamed@hbku.edu.qa","Qatar",{"$nulls":3},28963404160]
[29042200125,210003999,"Mouhammad",null,"Hijab",201820,201810,"Active","Science & Engineering","Doctorate","PHD"," ",null," ","Sustainable Environment","PhD in Sustainable Environment","MouHijab@hbku.edu.qa","Lebanon","00974-55903285",null,null,29042200125]
[28736400071,210003993,"Ahmad","Mohammed Abdollah Kewany","Fard",201820,201610,"Active","Science & Engineering","Doctorate","PHD"," ",null," ","Sustainable Environment","PhD in Sustainable Environment","AhmFard@hbku.edu.qa","Iran (Islamic Republic Of)",{"$nulls":3},28736400071]

{"sheet":"Stipend Pmt Nov-19 ","index":5,"n_rows":35,"n_cols":15,"rows_kept":35}
[]
[{"$nulls":4},"Stipend Payment for Month/ YEAR"]
[]
[]
[]
["Ref."]
["To:   Accounts Payable Manager / QF-Finance"]
["CC:   Executive Director / QF-Finance"]
["CC:  Chief Financial Officer / HBKU-Finance"]
["Date: "]
[]
["Please arrange for the payment of QRXXXX/- stipend to the following students receiving scholarships via bank transfer to their respective below bank accounts. The HBKU account to be charged is HU.BW.85A.724009.S0XX.HBKU.0000.00"]
[]
["#","QID Student Name ","Banner Student Name","Banner ID","Qatar ID","Admit Semester","Program","Amount","IBAN ","Bank Name","Swift Code","Status Check","Further Notes","OS Fees","Tui/Housing"]
[1,{"$nulls":12},{"$f":"IFERROR(VLOOKUP(Table434[[#This Row],[Banner ID]],'[1]31072019 Ageing'!$D$29:$E$244,2,FALSE),0)","v":0},{"$f":"IFERROR(VLOOKUP(Table434[[#This Row],[Banner ID]],'[1]31072019 Ageing'!$D$29:$L$244,9,FALSE),0)","v":0}]
[{"$nulls":13},{"$f":"IFERROR(VLOOKUP(Table434[[#This Row],[Banner ID]],'[1]31072019 Ageing'!$D$29:$E$244,2,FALSE),0)","v":0},{"$f":"IFERROR(VLOOKUP(Table434[[#This Row],[Banner ID]],'[1]31072019 Ageing'!$D$29:$L$244,9,FALSE),0)","v":0}]
[{"$nulls":13},{"$f":"IFERROR(VLOOKUP(Table434[[#This Row],[Banner ID]],'[1]31072019 Ageing'!$D$29:$E$244,2,FALSE),0)","v":0},{"$f":"IFERROR(VLOOKUP(Table434[[#This Row],[Banner ID]],'[1]31072019 Ageing'!$D$29:$L$244,9,FALSE),0)","v":0}]
[{"$nulls":13},{"$f":"IFERROR(VLOOKUP(Table434[[#This Row],[Banner ID]],'[1]31072019 Ageing'!$D$29:$E$244,2,FALSE),0)","v":0},{"$f":"IFERROR(VLOOKUP(Table434[[#This Row],[Banner ID]],'[1]31072019 Ageing'!$D$29:$L$244,9,FALSE),0)","v":0}]
[{"$nulls":13},{"$f":"IFERROR(VLOOKUP(Table434[[#This Row],[Banner ID]],'[1]31072019 Ageing'!$D$29:$E$244,2,FALSE),0)","v":0},{"$f":"IFERROR(VLOOKUP(Table434[[#This Row],[Banner ID]],'[1]31072019 Ageing'!$D$29:$L$244,9,FALSE),0)","v":0}]
[{"$nulls":13},{"$f":"IFERROR(VLOOKUP(Table434[[#This Row],[Banner ID]],'[1]31072019 Ageing'!$D$29:$E$244,2,FALSE),0)","v":0},{"$f":"IFERROR(VLOOKUP(Table434[[#This Row],[Banner ID]],'[1]31072019 Ageing'!$D$29:$L$244,9,FALSE),0)","v":0}]
[{"$nulls":13},{"$f":"IFERROR(VLOOKUP(Table434[[#This Row],[Banner ID]],'[1]31072019 Ageing'!$D$29:$E$244,2,FALSE),0)","v":0},{"$f":"IFERROR(VLOOKUP(Table434[[#This Row],[Banner ID]],'[1]31072019 Ageing'!$D$29:$L$244,9,FALSE),0)","v":0}]
[{"$nulls":13},{"$f":"IFERROR(VLOOKUP(Table434[[#This Row],[Banner ID]],'[1]31072019 Ageing'!$D$29:$E$244,2,FALSE),0)","v":0},{"$f":"IFERROR(VLOOKUP(Table434[[#This Row],[Banner ID]],'[1]31072019 Ageing'!$D$29:$L$244,9,FALSE),0)","v":0}]
[{"$nulls":13},{"$f":"IFERROR(VLOOKUP(Table434[[#This Row],[Banner ID]],'[1]31072019 Ageing'!$D$29:$E$244,2,FALSE),0)","v":0},{"$f":"IFERROR(VLOOKUP(Table434[[#This Row],[Banner ID]],'[1]31072019 Ageing'!$D$29:$L$244,9,FALSE),0)","v":0}]
[{"$nulls":13},{"$f":"IFERROR(VLOOKUP(Table434[[#This Row],[Banner ID]],'[1]31072019 Ageing'!$D$29:$E$244,2,FALSE),0)","v":0},{"$f":"IFERROR(VLOOKUP(Table434[[#This Row],[Banner ID]],'[1]31072019 Ageing'!$D$29:$L$244,9,FALSE),0)","v":0}]
[{"$nulls":13},{"$f":"IFERROR(VLOOKUP(Table434[[#This Row],[Banner ID]],'[1]31072019 Ageing'!$D$29:$E$244,2,FALSE),0)","v":0},{"$f":"IFERROR(VLOOKUP(Table434[[#This Row],[Banner ID]],'[1]31072019 Ageing'!$D$29:$L$244,9,FALSE),0)","v":0}]
[{"$nulls":13},{"$f":"IFERROR(VLOOKUP(Table434[[#This Row],[Banner ID]],'[1]31072019 Ageing'!$D$29:$E$244,2,FALSE),0)","v":0},{"$f":"IFERROR(VLOOKUP(Table434[[#This Row],[Banner ID]],'[1]31072019 Ageing'!$D$29:$L$244,9,FALSE),0)","v":0}]
[{"$nulls":13},{"$f":"IFERROR(VLOOKUP(Table434[[#This Row],[Banner ID]],'[1]31072019 Ageing'!$D$29:$E$244,2,FALSE),0)","v":0},{"$f":"IFERROR(VLOOKUP(Table434[[#This Row],[Banner ID]],'[1]31072019 Ageing'!$D$29:$L$244,9,FALSE),0)","v":0}]
[{"$nulls":13},{"$f":"IFERROR(VLOOKUP(Table434[[#This Row],[Banner ID]],'[1]31072019 Ageing'!$D$29:$E$244,2,FALSE),0)","v":0},{"$f":"IFERROR(VLOOKUP(Table434[[#This Row],[Banner ID]],'[1]31072019 Ageing'!$D$29:$L$244,9,FALSE),0)","v":0}]
[{"$nulls":13},{"$f":"IFERROR(VLOOKUP(Table434[[#This Row],[Banner ID]],'[1]31072019 Ageing'!$D$29:$E$244,2,FALSE),0)","v":0},{"$f":"IFERROR(VLOOKUP(Table434[[#This Row],[Banner ID]],'[1]31072019 Ageing'!$D$29:$L$244,9,FALSE),0)","v":0}]
[{"$nulls":13},{"$f":"IFERROR(VLOOKUP(Table434[[#This Row],[Banner ID]],'[1]31072019 Ageing'!$D$29:$E$244,2,FALSE),0)","v":0},{"$f":"IFERROR(VLOOKUP(Table434[[#This Row],[Banner ID]],'[1]31072019 Ageing'!$D$29:$L$244,9,FALSE),0)","v":0}]
[{"$nulls":13},{"$f":"IFERROR(VLOOKUP(Table434[[#This Row],[Banner ID]],'[1]31072019 Ageing'!$D$29:$E$244,2,FALSE),0)","v":0},{"$f":"IFERROR(VLOOKUP(Table434[[#This Row],[Banner ID]],'[1]31072019 Ageing'!$D$29:$L$244,9,FALSE),0)","v":0}]
[{"$nulls":13},{"$f":"IFERROR(VLOOKUP(Table434[[#This Row],[Banner ID]],'[1]31072019 Ageing'!$D$29:$E$244,2,FALSE),0)","v":0},{"$f":"IFERROR(VLOOKUP(Table434[[#This Row],[Banner ID]],'[1]31072019 Ageing'!$D$29:$L$244,9,FALSE),0)","v":0}]
[{"$nulls":13},{"$f":"IFERROR(VLOOKUP(Table434[[#This Row],[Banner ID]],'[1]31072019 Ageing'!$D$29:$E$244,2,FALSE),0)","v":0},{"$f":"IFERROR(VLOOKUP(Table434[[#This Row],[Banner ID]],'[1]31072019 Ageing'!$D$29:$L$244,9,FALSE),0)","v":0}]
[]
[{"$nulls":6},"               QR",{"$f":"SUM(H15:H34)","v":0},null,null,"[Signed by:] Dr. XXXX (Dean of \" student entity-HBKU)"]